"Merchandising Type Category","Detailed Merchant Category","Supplier","Purchase Details","Transaction Date","Value","Department"
"Business Services","Advertising Services","Facebk Ex58jwj8z2","Supplies and Services related expenditure","10/01/2020","204.10","Director of Corporate Services"
"Automobile Rental","Automobile Rental Agency","Southern Motor Contrac","Supplies and Services related expenditure","10/01/2020","-77.00","Director of Children's Services and Education"
"Automobile Rental","Automobile Rental Agency","Southern Motor Contrac","Supplies and Services related expenditure","10/01/2020","462.00","Director of Children's Services and Education"
"Business To Business Eqpt/Furn","Stationery/Office Supplies","Www.Banneruk.Com","Supplies and Services related expenditure","10/01/2020","1.53","Director of Housing, Neighbourhood and Building Services"
"Business To Business Eqpt/Furn","Stationery/Office Supplies","Www.Banneruk.Com","Agency and Third Party Payments related expenditure","10/01/2020","3.75","Director of Housing, Neighbourhood and Building Services"
"Business To Business Eqpt/Furn","Stationery/Office Supplies","Www.Banneruk.Com","Supplies and Services related expenditure","10/01/2020","15.78","Director of Housing, Neighbourhood and Building Services"
"Type of Retail Store","Grocery Stores/Supermarkets","Asda Groceries Online","Supplies and Services related expenditure","10/01/2020","-0.50","Director of Children's Services and Education"
"Type of Retail Store","Grocery Stores/Supermarkets","Asda Groceries Online","Supplies and Services related expenditure","10/01/2020","48.85","Director of Children's Services and Education"
"Other Supplies","Misc Speciality Retail","Amznmktplace Amazon.Co.Uk","Supplies and Services related expenditure","10/01/2020","21.66","Director of Adult Services"
"Freight/Courier/Warehouse Svcs","Public Warehousing","Big Yellow - Portsmout","Premises related expenditure","10/01/2020","11.67","Director of Housing, Neighbourhood and Building Services"
"Freight/Courier/Warehouse Svcs","Public Warehousing","Big Yellow - Portsmout","Premises related expenditure","10/01/2020","25.00","Director of Housing, Neighbourhood and Building Services"
"Freight/Courier/Warehouse Svcs","Public Warehousing","Big Yellow - Portsmout","Premises related expenditure","10/01/2020","114.75","Director of Housing, Neighbourhood and Building Services"
"Hotels And Motels","Travelodge","Travelodge Gb0000","Agency and Third Party Payments related expenditure","10/01/2020","1,567.69","Director of Housing, Neighbourhood and Building Services"
"Hotels And Motels","Travelodge","Travelodge Gb0000","Agency and Third Party Payments related expenditure","10/01/2020","147.00","Director of Housing, Neighbourhood and Building Services"
"Eating And Drinking Places","Fast Food Restaurants","Shakeaway Portsmouth","Supplies and Services related expenditure","10/01/2020","4.49","Director of Children's Services and Education"
"Transportation Conveyor","Local Commuter Transport","Stena Line Ltd","Supplies and Services related expenditure","10/01/2020","-294.00","Director of Portsmouth International Port"
"Transportation Conveyor","Passenger Railways","Thetrainline.Com","Transport related expenditure","10/01/2020","88.99","Director of Children's Services and Education"
"Auto/Vehicle Expenses","Auto Service Shops/Non Dealer","South Coast Tail Lift","Transport related expenditure","10/01/2020","38.00","Director of Housing, Neighbourhood and Building Services"
"Auto/Vehicle Expenses","Automotive Tire Stores","Portsmouth - Protyre","Transport related expenditure","10/01/2020","309.40","Director of Housing, Neighbourhood and Building Services"
"Other Supplies","Misc Speciality Retail","Amznmktplace","Supplies and Services related expenditure","10/01/2020","11.70","Director of Children's Services and Education"
"Other Supplies","Misc Speciality Retail","Amznmktplace","Supplies and Services related expenditure","10/01/2020","11.15","Director of Children's Services and Education"
"Other Supplies","Misc Speciality Retail","Amznmktplace","Supplies and Services related expenditure","10/01/2020","27.45","Director of Children's Services and Education"
"Other Supplies","Misc Speciality Retail","Amznmktplace","Premises related expenditure","10/01/2020","408.33","Director of Children's Services and Education"
"Facilities/Repair Supplies","Home Supply Warehouse Stores","B&q Direct","Supplies and Services related expenditure","10/01/2020","94.10","Director of Children's Services and Education"
"Business Expenses/Services","Postage Stamps","Post Office Counter","Supplies and Services related expenditure","10/01/2020","3.44","Director of Children's Services and Education"
"Type of Retail Store","Grocery Stores/Supermarkets","R A Tier And Sons","Supplies and Services related expenditure","10/01/2020","22.31","Director of Children's Services and Education"
"Other Supplies","Misc Speciality Retail","Amznmktplace","Supplies and Services related expenditure","10/01/2020","17.48","Director of Regeneration"
"Business To Business Facility/","Industrial Supplies - Def","Arco Limited (Sap)","Supplies and Services related expenditure","10/01/2020","51.48","Director of Regeneration"
"Business Expenses/Services","Stationery Stores","Direct2u","Supplies and Services related expenditure","10/01/2020","69.74","Director of Regeneration"
"Digital Goods","Digital Goods - Games","Microsoft*xbox","Agency and Third Party Payments related expenditure","10/01/2020","12.99","Director of Children's Services and Education"
"Type of Retail Store","Grocery Stores/Supermarkets","Tesco Stores 4579","Premises related expenditure","10/01/2020","2.83","Director of Children's Services and Education"
"Type of Retail Store","Grocery Stores/Supermarkets","Tesco Stores 4579","Premises related expenditure","10/01/2020","2.50","Director of Children's Services and Education"
"Type of Retail Store","Grocery Stores/Supermarkets","Tesco Stores 4579","Premises related expenditure","10/01/2020","15.83","Director of Children's Services and Education"
"Type of Retail Store","Grocery Stores/Supermarkets","Tesco Stores 4579","Supplies and Services related expenditure","10/01/2020","130.86","Director of Children's Services and Education"
"Transportation Conveyor","Passenger Railways","Swrailway Tck Off","Supplies and Services related expenditure","10/01/2020","24.50","Director of Children's Services and Education"
"Type of Retail Store","Grocery Stores/Supermarkets","Tesco Stores 4611","Supplies and Services related expenditure","10/01/2020","40.00","Director of Children's Services and Education"
"Type of Retail Store","Grocery Stores/Supermarkets","Tesco Stores 4579","Supplies and Services related expenditure","10/01/2020","4.17","Director of Children's Services and Education"
"Type of Retail Store","Grocery Stores/Supermarkets","Tesco Stores 4579","Agency and Third Party Payments related expenditure","10/01/2020","16.67","Director of Children's Services and Education"
"Other Supplies","Department Stores","The Range","Supplies and Services related expenditure","10/01/2020","4.16","Director of Children's Services and Education"
"Other Supplies","Department Stores","The Range","Supplies and Services related expenditure","10/01/2020","5.81","Director of Children's Services and Education"
"Other Supplies","Department Stores","The Range","Supplies and Services related expenditure","10/01/2020","14.46","Director of Children's Services and Education"
"Type of Retail Store","Grocery Stores/Supermarkets","Wm Morrisons Store","Supplies and Services related expenditure","10/01/2020","5.17","Director of Children's Services and Education"
"Type of Retail Store","Grocery Stores/Supermarkets","Wm Morrisons Store","Supplies and Services related expenditure","10/01/2020","57.48","Director of Children's Services and Education"
"Clothing Services","Mens/Womens Clothing Stores","Footasylum Plc","Supplies and Services related expenditure","10/01/2020","104.97","Director of Children's Services and Education"
"Amusement/Entertainment","Amusement/Rec Serv - Def","Scotkart","Agency and Third Party Payments related expenditure","10/01/2020","180.00","Director of Children's Services and Education"
"Business To Business Eqpt/Furn","Stationery/Office Supplies","Www.Banneruk.Com","Supplies and Services related expenditure","10/01/2020","7.88","Director of Children's Services and Education"
"Business To Business Eqpt/Furn","Stationery/Office Supplies","Www.Banneruk.Com","Supplies and Services related expenditure","10/01/2020","8.99","Director of Children's Services and Education"
"Business To Business Eqpt/Furn","Stationery/Office Supplies","Www.Banneruk.Com","Supplies and Services related expenditure","10/01/2020","34.98","Director of Children's Services and Education"
"Transportation Conveyor","Parking Lots, Meters, Garages","3c_*portsmouth City Coun","Transport related expenditure","10/01/2020","1.67","Director of Children's Services and Education"
"Eating And Drinking Places","Eating Places/Restaurants","Costa","Supplies and Services related expenditure","10/01/2020","2.92","Director of Children's Services and Education"
"Medical","Lab/Med/Hospital Equipment","Wightman & Parrish Ltd","Supplies and Services related expenditure","10/01/2020","19.95","Director of Adult Services"
"Medical","Lab/Med/Hospital Equipment","Wightman & Parrish Ltd","Supplies and Services related expenditure","10/01/2020","37.98","Director of Adult Services"
"Medical","Lab/Med/Hospital Equipment","Wightman & Parrish Ltd","Premises related expenditure","10/01/2020","177.52","Director of Adult Services"
"Other Supplies","Misc Speciality Retail","Amazon.Co.Uk","Supplies and Services related expenditure","10/01/2020","12.26","Director of Children's Services and Education"
"Government Service","Schools - Default","M L (UK) Limited","Premises related expenditure","10/01/2020","144.02","Director of Portsmouth International Port"
"Government Service","Schools - Default","M L (UK) Limited","Premises related expenditure","10/01/2020","398.86","Director of Portsmouth International Port"
"Type of Retail Store","Grocery Stores/Supermarkets","Tesco Stores 6002","Supplies and Services related expenditure","10/01/2020","5.80","Director of Children's Services and Education"
"Type of Retail Store","Grocery Stores/Supermarkets","Tesco Stores 6002","Supplies and Services related expenditure","10/01/2020","82.77","Director of Children's Services and Education"
"Business To Business Eqpt/Furn","Commercial Furniture","Www.Equip4work.Co.Uk","Supplies and Services related expenditure","10/01/2020","972.00","Director of Housing, Neighbourhood and Building Services"
"Transportation Conveyor","Parking Lots, Meters, Garages","Parking Services","Transport related expenditure","10/01/2020","4.59","Director of Children's Services and Education"
"Eating And Drinking Places","Fast Food Restaurants","McDonalds","Supplies and Services related expenditure","10/01/2020","9.15","Director of Children's Services and Education"
"Other Supplies","Misc Speciality Retail","Www.Cgpbooks.Co.Uk","Supplies and Services related expenditure","10/01/2020","129.55","Director of Children's Services and Education"
"Other Supplies","Misc Speciality Retail","Www.Cgpbooks.Co.Uk","Supplies and Services related expenditure","10/01/2020","199.30","Director of Children's Services and Education"
"Type of Retail Store","Sports/Riding Apparel Store","Www.Brigade.Uk.Com","Supplies and Services related expenditure","10/01/2020","226.09","Director of Children's Services and Education"
"Other Supplies","Misc Speciality Retail","Amznmktplace","Supplies and Services related expenditure","10/01/2020","10.40","Director of Housing, Neighbourhood and Building Services"
"Type of Retail Store","Electronics Sales","Digi-Quick","Supplies and Services related expenditure","10/01/2020","11.66","Director of Children's Services and Education"
"Type of Retail Store","Grocery Stores/Supermarkets","Lidl Gb","Supplies and Services related expenditure","10/01/2020","3.83","Director of Adult Services"
"Business To Business Eqpt/Furn","Stationery/Office Supplies","Www.Banneruk.Com","Supplies and Services related expenditure","10/01/2020","16.14","Director of Culture, Leisure & Regulatory Services"
"Government Service","Govt Serv - Default","Pcc Internet Payment","Supplies and Services related expenditure","10/01/2020","11.00","Director of Children's Services and Education"
"Government Service","Govt Serv - Default","Pcc Internet Payment","Supplies and Services related expenditure","10/01/2020","11.00","Director of Children's Services and Education"
"Type of Retail Store","Grocery Stores/Supermarkets","Lidl Gb Portsmouth","Supplies and Services related expenditure","10/01/2020","7.06","Director of Children's Services and Education"
"Type of Retail Store","Grocery Stores/Supermarkets","Asda Stores","Supplies and Services related expenditure","10/01/2020","63.68","Director of Adult Services"
"Other Supplies","Misc Speciality Retail","Amznmktplace","Premises related expenditure","10/01/2020","59.14","Director of Adult Services"
"Other Supplies","Misc Gen Merchandise - Def","B&m Retail Ltd","Supplies and Services related expenditure","10/01/2020","76.00","Director of Adult Services"
"Facilities/Repair Supplies","Home Supply Warehouse Stores","B & Q 1260","Premises related expenditure","10/01/2020","64.38","Director of Adult Services"
"Type of Retail Store","Grocery Stores/Supermarkets","Wm Morrisons Store Pick","Supplies and Services related expenditure","10/01/2020","8.00","Director of Children's Services and Education"
"Other Supplies","Misc Speciality Retail","Amznmktplace Amazon.Co.Uk","Supplies and Services related expenditure","10/01/2020","7.78","Director of Children's Services and Education"
"Business Expenses/Services","News Dealers/Newsstands","Www.Firstnews.Co.Uk","Supplies and Services related expenditure","10/01/2020","57.00","Director of Children's Services and Education"
"Other Supplies","Misc Speciality Retail","Amznmktplace","Supplies and Services related expenditure","10/01/2020","92.44","Director of Children's Services and Education"
"Other Supplies","Misc Speciality Retail","Amznmktplace","Supplies and Services related expenditure","10/01/2020","51.63","Director of Corporate Services"
"Business To Business Eqpt/Furn","Stationery/Office Supplies","Www.Banneruk.Com","Supplies and Services related expenditure","10/01/2020","12.73","Director of Adult Services"
"Facilities/Repair Supplies","Home Supply Warehouse Stores","B & Q 1260","Supplies and Services related expenditure","10/01/2020","75.68","Director of Regeneration"
"Business To Business Facility/","Industrial Supplies - Def","Www.Arco.Co.Uk","Supplies and Services related expenditure","10/01/2020","70.40","Director of Housing, Neighbourhood and Building Services"
"Other Supplies","Misc Speciality Retail","Amznmktplace","Supplies and Services related expenditure","10/01/2020","16.23","Director of Children's Services and Education"
"Type of Retail Store","Grocery Stores/Supermarkets","Wm Morrisons Store","Supplies and Services related expenditure","10/01/2020","66.54","Director of Children's Services and Education"
"Type of Retail Store","Grocery Stores/Supermarkets","Asda Superstore","Supplies and Services related expenditure","10/01/2020","7.54","Director of Adult Services"
"Type of Retail Store","Record Shops","Amazon Music","Supplies and Services related expenditure","10/01/2020","12.49","Director of Adult Services"
"Type of Retail Store","Grocery Stores/Supermarkets","One Stop 1339","Supplies and Services related expenditure","10/01/2020","3.20","Director of Children's Services and Education"
"Other Supplies","Misc Speciality Retail","Amznmktplace","Supplies and Services related expenditure","10/01/2020","42.00","Director of Adult Services"
"Other Supplies","Misc Speciality Retail","Amznmktplace","Supplies and Services related expenditure","10/01/2020","3.99","Director of Adult Services"
"Facilities/Repair Supplies","Lumber/Build. Supply Stores","Www.Brewers.Co.Uk","Supplies and Services related expenditure","10/01/2020","45.25","Director of Culture, Leisure & Regulatory Services"
"Facilities Maintenance","Clean/Maint/Janitoral Serv","Www.Prochem.Co.Uk","Supplies and Services related expenditure","10/01/2020","81.90","Director of Housing, Neighbourhood and Building Services"
"Other Supplies","Misc Speciality Retail","Amznmktplace","Supplies and Services related expenditure","10/01/2020","6.66","Director of Adult Services"
"Other Supplies","Misc Speciality Retail","Amznmktplace","Supplies and Services related expenditure","10/01/2020","3.74","Director of Adult Services"
"Business To Business Eqpt/Furn","Stationery/Office Supplies","Www.Banneruk.Com","Supplies and Services related expenditure","10/01/2020","131.42","Director of Adult Services"
"Other Supplies","Misc Speciality Retail","Amznmktplace","Supplies and Services related expenditure","10/01/2020","12.49","Director of Children's Services and Education"
"Miscellaneous","Other Direct Marketers","Amazon.Co.Uk","Supplies and Services related expenditure","10/01/2020","21.42","Director of Children's Services and Education"
"Type of Retail Store","Grocery Stores/Supermarkets","Portsmouth Fruit And Fl","Supplies and Services related expenditure","10/01/2020","20.00","Director of Children's Services and Education"
"Auto/Vehicle Expenses","Auto Service Shops/Non Dealer","Hollies Engineering","Transport related expenditure","10/01/2020","82.50","Director of Culture, Leisure & Regulatory Services"
"Facilities/Repair Supplies","Home Supply Warehouse Stores","B & Q 1260","Premises related expenditure","10/01/2020","11.62","Director of Adult Services"
"Other Supplies","Misc Gen Merchandise - Def","B&m 566 - Farlington","Supplies and Services related expenditure","10/01/2020","2.49","Director of Adult Services"
"Personal Service Provider","Accountants/Auditors/Bookpr","Www.Aat-Org.Uk","Employees related expenditure","10/01/2020","99.00","Director of Children's Services and Education"
"Other Supplies","Misc Speciality Retail","Amznbusiness","Supplies and Services related expenditure","10/01/2020","118.85","Director of Culture, Leisure & Regulatory Services"
"Facilities/Repair Supplies","Lumber/Build. Supply Stores","F H Brundle Worldpay-D","Supplies and Services related expenditure","10/01/2020","177.60","Director of Regeneration"
"Personal Service Provider","Computer Program/Sys Design","Living Your Learning L","Employees related expenditure","10/01/2020","101.69","Director of Regeneration"
"Type of Retail Store","Children/Infants Wear Store","Baby2k.Com","Supplies and Services related expenditure","10/01/2020","343.33","Director of Children's Services and Education"
"Other Supplies","Misc Speciality Retail","Crelling Harnesses Ltd","Supplies and Services related expenditure","10/01/2020","1,169.10","Director of Children's Services and Education"
"Other Supplies","Misc Speciality Retail","Amznmktplace","Agency and Third Party Payments related expenditure","10/01/2020","149.99","Director of Children's Services and Education"
"Type of Retail Store","Grocery Stores/Supermarkets","Co-Op Group Food","Supplies and Services related expenditure","10/01/2020","4.40","Director of Children's Services and Education"
"Other Supplies","Misc Speciality Retail","Amznmktplace","Supplies and Services related expenditure","10/01/2020","7.08","Director of Children's Services and Education"
"Other Supplies","Misc Speciality Retail","Amznmktplace","Supplies and Services related expenditure","10/01/2020","9.98","Director of Children's Services and Education"
"Equipment And Furniture","Household Appliance Stores","Ao Retail Limited","Premises related expenditure","10/01/2020","140.83","Director of Children's Services and Education"
"Type of Retail Store","Grocery Stores/Supermarkets","Fruit Basket Ltd","Supplies and Services related expenditure","10/01/2020","43.34","Director of Adult Services"
"Type of Retail Store","Misc Food Stores - Default","Bransbury Park Butchers","Supplies and Services related expenditure","10/01/2020","54.84","Director of Adult Services"
"Type of Retail Store","Freezer/Meat Lockers","Dennis Edwards Food Serv","Supplies and Services related expenditure","10/01/2020","189.01","Director of Adult Services"
"Type of Retail Store","Freezer/Meat Lockers","Dennis Edwards Food Serv","Supplies and Services related expenditure","10/01/2020","2.74","Director of Adult Services"
"Medical","Lab/Med/Hospital Equipment","Wightman & Parrish Ltd","Supplies and Services related expenditure","10/01/2020","760.20","Director of Housing, Neighbourhood and Building Services"
"Hotels And Motels","Premier Travel Inns","Premier Inn44010625","Agency and Third Party Payments related expenditure","10/01/2020","245.69","Director of Housing, Neighbourhood and Building Services"
"Other Supplies","Misc Speciality Retail","Amznmktplace Amazon.Co.Uk","Supplies and Services related expenditure","10/01/2020","6.05","Director of Children's Services and Education"
"Business To Business Facility/","Industrial Supplies - Def","Arco Limited (Ahpp)","Supplies and Services related expenditure","10/01/2020","4.40","Director of Housing, Neighbourhood and Building Services"
"Equipment And Furniture","Equip/Furn Rent/Lease Serv","Power Tool Hire/Sa","Supplies and Services related expenditure","10/01/2020","716.00","Director of Housing, Neighbourhood and Building Services"
"Equipment And Furniture","Equip/Furn Rent/Lease Serv","Power Tool Hire/Sa","Supplies and Services related expenditure","10/01/2020","716.00","Director of Housing, Neighbourhood and Building Services"
"Equipment And Furniture","Equip/Furn Rent/Lease Serv","Power Tool Hire/Sa","Supplies and Services related expenditure","10/01/2020","716.00","Director of Housing, Neighbourhood and Building Services"
"Equipment And Furniture","Equip/Furn Rent/Lease Serv","Power Tool Hire/Sa","Supplies and Services related expenditure","10/01/2020","716.00","Director of Housing, Neighbourhood and Building Services"
"Equipment And Furniture","Equip/Furn Rent/Lease Serv","Power Tool Hire/Sa","Supplies and Services related expenditure","10/01/2020","716.00","Director of Housing, Neighbourhood and Building Services"
"Hotels And Motels","Premier Travel Inns","Premier Inn 44536680","Agency and Third Party Payments related expenditure","10/02/2020","616.02","Director of Housing, Neighbourhood and Building Services"
"Facilities/Repair Supplies","Home Supply Warehouse Stores","B & Q 1260","Supplies and Services related expenditure","10/02/2020","3.87","Director of Culture, Leisure & Regulatory Services"
"Business Services","Business Services - Default","Www.Eyfs.Info","Supplies and Services related expenditure","10/02/2020","334.00","Director of Children's Services and Education"
"Equipment And Furniture","Equip/Furn Rent/Lease Serv","Afi Uplift","Supplies and Services related expenditure","10/02/2020","473.45","Director of Culture, Leisure & Regulatory Services"
"Business Expenses/Services","Postage Stamps","Post Office Counter","Supplies and Services related expenditure","10/02/2020","3.23","Director of Culture, Leisure & Regulatory Services"
"Government Service","Govt Serv - Default","Hampshire County Counc","Supplies and Services related expenditure","10/02/2020","11.00","Director of Adult Services"
"Other Supplies","Misc Speciality Retail","Amznmktplace Amazon.Co.Uk","Supplies and Services related expenditure","10/02/2020","3.88","Director of Housing, Neighbourhood and Building Services"
"Business To Business Facility/","Industrial Supplies - Def","Arco Limited (Ahpp)","Supplies and Services related expenditure","10/02/2020","74.98","Director of Regeneration"
"Digital Goods","Digital Goods - Games","Microsoft*xbox","Agency and Third Party Payments related expenditure","10/02/2020","6.49","Director of Children's Services and Education"
"Eating And Drinking Places","Eating Places/Restaurants","Flip Out Portsmouth","Agency and Third Party Payments related expenditure","10/02/2020","11.25","Director of Children's Services and Education"
"Eating And Drinking Places","Eating Places/Restaurants","Flip Out Portsmouth","Agency and Third Party Payments related expenditure","10/02/2020","11.25","Director of Children's Services and Education"
"Utility","Utilities/Elec/Gas/H2O/Sani","Castle Water","Premises related expenditure","10/02/2020","18.27","Director of Portsmouth International Port"
"Business To Business Facility/","Hardware Equipment/Supplies","Croma Locksmiths & Sec","Supplies and Services related expenditure","10/02/2020","167.88","Director of Housing, Neighbourhood and Building Services"
"Type of Retail Store","Grocery Stores/Supermarkets","Tesco Stores 4611","Supplies and Services related expenditure","10/02/2020","50.00","Director of Children's Services and Education"
"Other Supplies","Misc Speciality Retail","Amznmktplace Amazon.Co.Uk","Supplies and Services related expenditure","10/02/2020","29.63","Director of Culture, Leisure & Regulatory Services"
"Business To Business Eqpt/Furn","Stationery/Office Supplies","Www.Banneruk.Com","Supplies and Services related expenditure","10/02/2020","88.28","Director of Housing, Neighbourhood and Building Services"
"Type of Retail Store","Sporting Goods Stores","Sportsdirect.Com","Supplies and Services related expenditure","10/02/2020","79.16","Director of Children's Services and Education"
"Business To Business Facility/","Electrical Parts/Equipment","Edmundson Electrical","Premises related expenditure","10/02/2020","41.50","Director of Portsmouth International Port"
"Business To Business Facility/","Electrical Parts/Equipment","Edmundson Electrical","Premises related expenditure","10/02/2020","87.42","Director of Portsmouth International Port"
"Hotels And Motels","Hotel Ibis","Hotel Ibis","Agency and Third Party Payments related expenditure","10/02/2020","175.71","Director of Housing, Neighbourhood and Building Services"
"Other Supplies","Misc Speciality Retail","Amz*amazon.Co.Uk","Supplies and Services related expenditure","10/02/2020","-12.48","Director of Housing, Neighbourhood and Building Services"
"Government Service","Govt Serv - Default","Pcc Internet Payment","Agency and Third Party Payments related expenditure","10/02/2020","11.00","Director of Culture, Leisure & Regulatory Services"
"Government Service","Govt Serv - Default","Hampshire County Counc","Supplies and Services related expenditure","10/02/2020","47.00","Director of Children's Services and Education"
"Facilities/Repair Supplies","Lumber/Build. Supply Stores","Screwfix Direct","Supplies and Services related expenditure","10/02/2020","71.21","Director of Children's Services and Education"
"Transportation Conveyor","Parking Lots, Meters, Garages","Ncp Craswell Street","Transport related expenditure","10/02/2020","1.00","Director of Children's Services and Education"
"Eating And Drinking Places","Fast Food Restaurants","McDonalds","Supplies and Services related expenditure","10/02/2020","4.08","Director of Children's Services and Education"
"Type of Retail Store","Grocery Stores/Supermarkets","Tesco Store 3048","Supplies and Services related expenditure","10/02/2020","14.16","Director of Children's Services and Education"
"Business To Business Eqpt/Furn","Stationery/Office Supplies","Www.Banneruk.Com","Supplies and Services related expenditure","10/02/2020","5.02","Director of Adult Services"
"Other Supplies","Misc Speciality Retail","Amznmktplace","Supplies and Services related expenditure","10/02/2020","21.50","Director of Adult Services"
"Type of Retail Store","Grocery Stores/Supermarkets","Tesco Stores 4579","Supplies and Services related expenditure","10/02/2020","95.26","Director of Housing, Neighbourhood and Building Services"
"Medical","Lab/Med/Hospital Equipment","Wightman & Parrish","Premises related expenditure","10/02/2020","62.00","Director of Regeneration"
"Other Supplies","Misc Speciality Retail","Www.Eliteindustrial.Co","Supplies and Services related expenditure","10/02/2020","256.83","Director of Children's Services and Education"
"Government Service","Govt Serv - Default","Hm Passport Office","Supplies and Services related expenditure","10/02/2020","75.50","Director of Children's Services and Education"
"Other Supplies","Misc Speciality Retail","Amznbusiness","Supplies and Services related expenditure","10/02/2020","23.85","Director of Children's Services and Education"
"Business To Business Other Sup","Uniforms & Commercial Clothing","Alexandra Website","Supplies and Services related expenditure","10/02/2020","20.34","Director of Housing, Neighbourhood and Building Services"
"Utility","Phone Serv/Equip Utility","Giffgaff","Supplies and Services related expenditure","10/02/2020","20.00","Director of Children's Services and Education"
"Other Supplies","Misc Speciality Retail","Amznmktplace Amazon.Co.Uk","Supplies and Services related expenditure","10/02/2020","18.29","Director of Children's Services and Education"
"Type of Retail Store","Grocery Stores/Supermarkets","Asda Stores","Supplies and Services related expenditure","10/02/2020","42.00","Director of Children's Services and Education"
"Type of Retail Store","Electronics Sales","Currys Online","Supplies and Services related expenditure","10/02/2020","253.33","Director of Children's Services and Education"
"Business Expenses/Services","Florists","Pams Florist","Supplies and Services related expenditure","10/02/2020","200.50","Director of Culture, Leisure & Regulatory Services"
"Eating And Drinking Places","Eating Places/Restaurants","Flip Out Portsmouth","Supplies and Services related expenditure","10/02/2020","20.42","Director of Children's Services and Education"
"Transportation Conveyor","Parking Lots, Meters, Garages","Southampton City Counc","Transport related expenditure","10/02/2020","3.92","Director of Children's Services and Education"
"Facilities/Repair Supplies","Home Supply Warehouse Stores","B&q Direct","Supplies and Services related expenditure","10/02/2020","10.83","Director of Culture, Leisure & Regulatory Services"
"Type of Retail Store","Grocery Stores/Supermarkets","Tesco Stores 4611","Supplies and Services related expenditure","10/02/2020","40.00","Director of Children's Services and Education"
"Type of Retail Store","Grocery Stores/Supermarkets","Asda Superstore","Supplies and Services related expenditure","10/02/2020","4.36","Director of Adult Services"
"Miscellaneous","Charitable/Soc Service Orgs","The Salvation Army","Capital related expenditure","10/02/2020","60.00","Capital - Housing RA"
"Miscellaneous","Charitable/Soc Service Orgs","The Salvation Army","Capital related expenditure","10/02/2020","245.00","Capital - Housing RA"
"Type of Retail Store","Artist/Craft Shops","Baker Ross","Supplies and Services related expenditure","10/02/2020","88.96","Director of Housing, Neighbourhood and Building Services"
"Other Supplies","Misc Speciality Retail","Amznmktplace","Supplies and Services related expenditure","10/02/2020","59.29","Director of Culture, Leisure & Regulatory Services"
"Other Supplies","Misc Speciality Retail","Amznmktplace","Supplies and Services related expenditure","10/02/2020","27.08","Director of Children's Services and Education"
"Other Supplies","Misc Speciality Retail","Amznmktplace","Supplies and Services related expenditure","10/02/2020","27.49","Director of Children's Services and Education"
"Utility","Phone Serv/Equip Utility","O2","Supplies and Services related expenditure","10/02/2020","24.64","Director of Children's Services and Education"
"Government Service","Govt Serv - Default","Www.Ico.Org.Uk","Supplies and Services related expenditure","10/02/2020","40.00","Director of Children's Services and Education"
"Type of Retail Store","Grocery Stores/Supermarkets","Asda Groceries Online","Supplies and Services related expenditure","10/02/2020","25.19","Director of Children's Services and Education"
"Type of Retail Store","Grocery Stores/Supermarkets","Asda Groceries Online","Supplies and Services related expenditure","10/02/2020","22.98","Director of Children's Services and Education"
"Facilities/Repair Supplies","Lumber/Build. Supply Stores","C.E.F. (Portsmouth)","Premises related expenditure","10/02/2020","25.00","Director of Adult Services"
"Facilities/Repair Supplies","Lumber/Build. Supply Stores","Screwfix Portsmouth","Premises related expenditure","10/02/2020","73.33","Director of Adult Services"
"Facilities/Repair Supplies","Lumber/Build. Supply Stores","Screwfix Portsmouth","Premises related expenditure","10/02/2020","16.66","Director of Culture, Leisure & Regulatory Services"
"Auto/Vehicle Expenses","Toll And Bridge Fees","M6 Toll","Supplies and Services related expenditure","10/02/2020","5.58","Director of Children's Services and Education"
"Other Supplies","Misc Speciality Retail","Amznmktplace","Premises related expenditure","10/02/2020","28.18","Director of Adult Services"
"Transportation Conveyor","Bus Lines/Charter/Tour","First Bus - Web","Supplies and Services related expenditure","10/02/2020","23.50","Director of Children's Services and Education"
"Business To Business Eqpt/Furn","Stationery/Office Supplies","Www.Banneruk.Com","Supplies and Services related expenditure","10/02/2020","23.70","Director of Culture, Leisure & Regulatory Services"
"Eating And Drinking Places","Fast Food Restaurants","McDonalds","Agency and Third Party Payments related expenditure","10/02/2020","1.69","Director of Children's Services and Education"
"Eating And Drinking Places","Fast Food Restaurants","McDonalds","Agency and Third Party Payments related expenditure","10/02/2020","4.84","Director of Children's Services and Education"
"Eating And Drinking Places","Fast Food Restaurants","McDonalds","Agency and Third Party Payments related expenditure","10/02/2020","1.19","Director of Children's Services and Education"
"Type of Retail Store","Grocery Stores/Supermarkets","Wm Morrisons Store","Supplies and Services related expenditure","10/02/2020","7.17","Director of Children's Services and Education"
"Type of Retail Store","Grocery Stores/Supermarkets","Wm Morrisons Store","Supplies and Services related expenditure","10/02/2020","12.82","Director of Children's Services and Education"
"Other Supplies","Department Stores","Southern Co-Op 0247","Supplies and Services related expenditure","10/02/2020","5.20","Director of Children's Services and Education"
"Government Service","Govt Serv - Default","Disclosure & Barring","Supplies and Services related expenditure","10/02/2020","13.00","Director of Children's Services and Education"
"Government Service","Govt Serv - Default","Disclosure & Barring","Supplies and Services related expenditure","10/02/2020","13.00","Director of Children's Services and Education"
"Government Service","Govt Serv - Default","Disclosure & Barring","Supplies and Services related expenditure","10/02/2020","13.00","Director of Children's Services and Education"
"Government Service","Govt Serv - Default","Disclosure & Barring","Supplies and Services related expenditure","10/02/2020","13.00","Director of Children's Services and Education"
"Government Service","Govt Serv - Default","Disclosure & Barring","Supplies and Services related expenditure","10/02/2020","13.00","Director of Children's Services and Education"
"Government Service","Govt Serv - Default","Disclosure & Barring","Supplies and Services related expenditure","10/02/2020","13.00","Director of Children's Services and Education"
"Hotels And Motels","Travelodge","Travelodge Gb0000","Supplies and Services related expenditure","10/02/2020","210.44","Director of Children's Services and Education"
"Hotels And Motels","Travelodge","Travelodge Gb0000","Supplies and Services related expenditure","10/02/2020","3.68","Director of Children's Services and Education"
"Other Supplies","Misc Speciality Retail","Amznmktplace","Supplies and Services related expenditure","10/02/2020","9.57","Director of Housing, Neighbourhood and Building Services"
"Hotels And Motels","Premier Travel Inns","Premier Inn44010625","Agency and Third Party Payments related expenditure","10/03/2020","2,238.78","Director of Housing, Neighbourhood and Building Services"
"Business To Business Facility/","Industrial Supplies - Def","Www.Safetyfirstaid.Co.","Supplies and Services related expenditure","10/03/2020","90.00","Director of Portsmouth International Port"
"Eating And Drinking Places","Fast Food Restaurants","Subway 44472","Supplies and Services related expenditure","10/03/2020","3.80","Director of Children's Services and Education"
"Other Supplies","Misc Speciality Retail","Amznmktplace","Supplies and Services related expenditure","10/03/2020","4.22","Director of Children's Services and Education"
"Amusement/Entertainment","Member Clubs/Sport/Rec/Golf","Teamsport","Agency and Third Party Payments related expenditure","10/03/2020","4.75","Director of Children's Services and Education"
"Type of Retail Store","Drug Stores & Pharmacies","Boots 2148","Supplies and Services related expenditure","10/03/2020","4.99","Director of Children's Services and Education"
"Eating And Drinking Places","Fast Food Restaurants","Subway 44472","Agency and Third Party Payments related expenditure","10/03/2020","5.70","Director of Children's Services and Education"
"Eating And Drinking Places","Fast Food Restaurants","McDonalds","Agency and Third Party Payments related expenditure","10/03/2020","2.78","Director of Children's Services and Education"
"Eating And Drinking Places","Fast Food Restaurants","McDonalds","Agency and Third Party Payments related expenditure","10/03/2020","14.32","Director of Children's Services and Education"
"Amusement/Entertainment","Member Clubs/Sport/Rec/Golf","Teamsport","Agency and Third Party Payments related expenditure","10/03/2020","24.00","Director of Children's Services and Education"
"Amusement/Entertainment","Member Clubs/Sport/Rec/Golf","Teamsport","Agency and Third Party Payments related expenditure","10/03/2020","24.00","Director of Children's Services and Education"
"Type of Retail Store","Grocery Stores/Supermarkets","Wm Morrisons Store","Supplies and Services related expenditure","10/03/2020","3.33","Director of Children's Services and Education"
"Type of Retail Store","Grocery Stores/Supermarkets","Wm Morrisons Store","Supplies and Services related expenditure","10/03/2020","46.78","Director of Children's Services and Education"
"Digital Goods","Digital Goods - Games","Microsoft*microsoft 365 P","Supplies and Services related expenditure","10/03/2020","34.99","Director of Children's Services and Education"
"Other Supplies","Catalog Merchant","Www.Nisbets.Com","Supplies and Services related expenditure","10/03/2020","84.34","Director of Adult Services"
"Clothing Services","Misc Apparel/Access Shops","Etsy.Com Multiple Shop","Supplies and Services related expenditure","10/03/2020","26.89","Director of Culture, Leisure & Regulatory Services"
"Facilities/Repair Supplies","Lawn/Garden Supply/Nursery","Pdsa","Supplies and Services related expenditure","10/03/2020","67.96","Director of Culture, Leisure & Regulatory Services"
"Facilities/Repair Supplies","Lumber/Build. Supply Stores","Screwfix Direct","Supplies and Services related expenditure","10/03/2020","74.99","Director of Housing, Neighbourhood and Building Services"
"Type of Retail Store","Grocery Stores/Supermarkets","Lidl Gb","Premises related expenditure","10/03/2020","3.75","Director of Children's Services and Education"
"Type of Retail Store","Grocery Stores/Supermarkets","Aldi Stores Ltd","Supplies and Services related expenditure","10/03/2020","12.83","Director of Adult Services"
"Other Supplies","Misc Speciality Retail","Amznmktplace","Premises related expenditure","10/03/2020","29.98","Director of Children's Services and Education"
"Business To Business Facility/","Construction Materials - Def","Tradefix Direct","Supplies and Services related expenditure","10/03/2020","38.20","Director of Housing, Neighbourhood and Building Services"
"Other Supplies","Misc Speciality Retail","Amznbusiness","Supplies and Services related expenditure","10/03/2020","8.40","Director of Housing, Neighbourhood and Building Services"
"Other Supplies","Misc Speciality Retail","Amznmktplace","Supplies and Services related expenditure","10/03/2020","12.23","Director of Children's Services and Education"
"Transportation Conveyor","Parking Lots, Meters, Garages","Gunwharf Quays","Transport related expenditure","10/03/2020","2.42","Director of Children's Services and Education"
"Transportation Conveyor","Parking Lots, Meters, Garages","Gunwharf Quays","Transport related expenditure","10/03/2020","2.42","Director of Children's Services and Education"
"Type of Retail Store","Grocery Stores/Supermarkets","Tesco Store 3055","Supplies and Services related expenditure","10/03/2020","11.67","Director of Children's Services and Education"
"Type of Retail Store","Grocery Stores/Supermarkets","Tesco Store 3055","Supplies and Services related expenditure","10/03/2020","5.83","Director of Children's Services and Education"
"Type of Retail Store","Grocery Stores/Supermarkets","Tesco Store 3055","Supplies and Services related expenditure","10/03/2020","29.35","Director of Children's Services and Education"
"Type of Retail Store","Sports/Riding Apparel Store","Nike Store 00542","Supplies and Services related expenditure","10/03/2020","27.97","Director of Children's Services and Education"
"Type of Retail Store","Sports/Riding Apparel Store","Nike Store 00542","Supplies and Services related expenditure","10/03/2020","45.43","Director of Children's Services and Education"
"Automobile Services & Supplies","Service Stations","Shell Victory","Transport related expenditure","10/03/2020","70.01","Director of Children's Services and Education"
"Clothing Services","Mens/Womens Clothing Stores","Www.Nikestore.Com","Agency and Third Party Payments related expenditure","10/03/2020","45.79","Director of Children's Services and Education"
"Type of Retail Store","Grocery Stores/Supermarkets","Tesco Stores 4579","Supplies and Services related expenditure","10/04/2020","11.90","Director of Children's Services and Education"
"Other Supplies","Misc Speciality Retail","Amznbusiness","Supplies and Services related expenditure","10/04/2020","10.40","Director of Portsmouth International Port"
"Other Supplies","Misc Speciality Retail","Amznmktplace","Supplies and Services related expenditure","10/04/2020","14.21","Director of Portsmouth International Port"
"Other Supplies","Misc Speciality Retail","Amznmktplace","Supplies and Services related expenditure","10/04/2020","60.54","Director of Children's Services and Education"
"Other Supplies","Misc Speciality Retail","Amznmktplace","Supplies and Services related expenditure","10/04/2020","49.99","Director of Culture, Leisure & Regulatory Services"
"Automobile Services & Supplies","Service Stations","Shell Victory","Transport related expenditure","10/04/2020","25.00","Director of Housing, Neighbourhood and Building Services"
"Type of Retail Store","Grocery Stores/Supermarkets","Tesco Store 3055","Supplies and Services related expenditure","10/04/2020","8.33","Director of Culture, Leisure & Regulatory Services"
"Business Services","Business Services - Default","Safe Industrial","Supplies and Services related expenditure","10/04/2020","172.20","Director of Portsmouth International Port"
"Other Supplies","Misc Speciality Retail","Amznbusiness","Supplies and Services related expenditure","10/04/2020","89.90","Director of Children's Services and Education"
"Other Supplies","Misc Speciality Retail","Amznmktplace","Supplies and Services related expenditure","10/04/2020","120.82","Director of Children's Services and Education"
"Other Supplies","Misc Speciality Retail","Amznmktplace","Supplies and Services related expenditure","10/04/2020","118.80","Director of Children's Services and Education"
"Other Supplies","Misc Speciality Retail","Amznmktplace","Supplies and Services related expenditure","10/04/2020","196.00","Director of Children's Services and Education"
"Miscellaneous","Continuity/Subscription Mercht","Mailchimp","Supplies and Services related expenditure","10/04/2020","56.60","Director of Culture, Leisure & Regulatory Services"
"Miscellaneous","Continuity/Subscription Mercht","Zoom.Gbp","Supplies and Services related expenditure","10/04/2020","40.00","Director of Children's Services and Education"
"Other Supplies","Misc Speciality Retail","Amznmktplace","Supplies and Services related expenditure","10/04/2020","9.14","Director of Children's Services and Education"
"Other Supplies","Misc Speciality Retail","Amznmktplace","Supplies and Services related expenditure","10/04/2020","6.24","Director of Children's Services and Education"
"Other Supplies","Misc Speciality Retail","Amznmktplace","Supplies and Services related expenditure","10/04/2020","75.99","Director of Adult Services"
"Other Supplies","Misc Speciality Retail","Amznmktplace","Supplies and Services related expenditure","10/04/2020","57.97","Director of Adult Services"
"Other Supplies","Misc Speciality Retail","Amznmktplace","Supplies and Services related expenditure","10/04/2020","2.87","Director of Adult Services"
"Other Supplies","Misc Speciality Retail","Amznmktplace","Supplies and Services related expenditure","10/04/2020","5.83","Director of Adult Services"
"Miscellaneous","Other Direct Marketers","Amazon.Co.Uk","Supplies and Services related expenditure","10/04/2020","85.78","Director of Children's Services and Education"
"Type of Retail Store","Grocery Stores/Supermarkets","Tesco Stores 5153","Supplies and Services related expenditure","10/04/2020","1.50","Director of Children's Services and Education"
"Business To Business Facility/","Industrial Supplies - Def","Arco Limited (Sap)","Supplies and Services related expenditure","10/01/2020","15.79","Director of Housing, Neighbourhood and Building Services"
"Business To Business Facility/","Industrial Supplies - Def","Arco Limited (Ahpp)","Supplies and Services related expenditure","10/01/2020","29.22","Director of Housing, Neighbourhood and Building Services"
"Business To Business Facility/","Industrial Supplies - Def","Arco Limited (Sap)","Supplies and Services related expenditure","10/02/2020","282.35","Director of Housing, Neighbourhood and Building Services"
"Other Supplies","Catalog Merchant","Www.Nisbets.Com","Supplies and Services related expenditure","10/03/2020","121.48","Director of Adult Services"
"Personal Service Provider","Professional Services - Def","Longdown","Agency and Third Party Payments related expenditure","10/04/2020","19.50","Director of Children's Services and Education"
"Other Supplies","Catalog Merchant","Www.Nisbets.Com","Supplies and Services related expenditure","10/04/2020","53.96","Director of Adult Services"
"Type of Retail Store","Grocery Stores/Supermarkets","Tesco Stores 4579","Supplies and Services related expenditure","10/05/2020","2.70","Director of Adult Services"
"Business Expenses/Services","Postage Stamps","Post Office Counter","Supplies and Services related expenditure","10/05/2020","3.70","Director of Adult Services"
"Facilities/Repair Supplies","Lumber/Build. Supply Stores","C.E.F. (Portsmouth)","Premises related expenditure","10/05/2020","15.00","Director of Adult Services"
"Facilities/Repair Services","Spec Contractors - Default","Www.Systemq.Com","Supplies and Services related expenditure","10/05/2020","37.95","Director of Housing, Neighbourhood and Building Services"
"Facilities/Repair Services","Spec Contractors - Default","Www.Systemq.Com","Supplies and Services related expenditure","10/05/2020","37.95","Director of Housing, Neighbourhood and Building Services"
"Business To Business Facility/","Industrial Supplies - Def","Arco Limited (Sap)","Supplies and Services related expenditure","10/05/2020","16.24","Director of Housing, Neighbourhood and Building Services"
"Business To Business Facility/","Industrial Supplies - Def","Arco Limited (Sap)","Supplies and Services related expenditure","10/05/2020","93.66","Director of Housing, Neighbourhood and Building Services"
"Other Supplies","Misc Speciality Retail","Amznmktplace","Supplies and Services related expenditure","10/05/2020","9.66","Director of Children's Services and Education"
"Business To Business Eqpt/Furn","Commercial Equipment - Default","Www.Easyequipment.Com","Premises related expenditure","10/05/2020","181.06","Director of Portsmouth International Port"
"Type of Retail Store","Music Stores/Pianos","Joytunes","Supplies and Services related expenditure","10/05/2020","17.99","Director of Children's Services and Education"
"Other Supplies","Misc Speciality Retail","Amazon.Co.Uk","Supplies and Services related expenditure","10/05/2020","9.44","Director of Children's Services and Education"
"Other Supplies","Misc Speciality Retail","Amznmktplace","Supplies and Services related expenditure","10/05/2020","11.24","Director of Children's Services and Education"
"Business To Business Services","Misc Publishing & Printing","Www.Schoolstickers.Co.","Supplies and Services related expenditure","10/05/2020","20.90","Director of Children's Services and Education"
"Other Supplies","Misc Speciality Retail","Amznmktplace","Supplies and Services related expenditure","10/05/2020","39.98","Director of Children's Services and Education"
"Medical","Lab/Med/Hospital Equipment","Incchoice","Supplies and Services related expenditure","10/05/2020","39.19","Director of Adult Services"
"Facilities/Repair Supplies","Home Supply Warehouse Stores","B & Q 1260","Supplies and Services related expenditure","10/05/2020","23.33","Director of Regeneration"
"Business Expenses/Services","Postage Stamps","Post Office Counter","Supplies and Services related expenditure","10/05/2020","21.70","Director of Culture, Leisure & Regulatory Services"
"Facilities/Repair Supplies","Lumber/Build. Supply Stores","Selco Trading Ctr","Supplies and Services related expenditure","10/05/2020","16.34","Director of Regeneration"
"Transportation Conveyor","Local Commuter Transport","Www.Wightlink.Co.Uk","Transport related expenditure","10/05/2020","69.50","Director of Children's Services and Education"
"Utility","Phone Serv/Equip Utility","Pageone","Supplies and Services related expenditure","10/05/2020","31.14","Director of Culture, Leisure & Regulatory Services"
"Other Supplies","Misc Speciality Retail","Amznmktplace","Supplies and Services related expenditure","10/05/2020","2.46","Director of Children's Services and Education"
"Type of Retail Store","Fabric Stores","Www.Merchantandmills.C","Supplies and Services related expenditure","10/05/2020","297.55","Director of Culture, Leisure & Regulatory Services"
"Business To Business Eqpt/Furn","Stationery/Office Supplies","Www.Banneruk.Com","Supplies and Services related expenditure","10/05/2020","5.24","Director of Children's Services and Education"
"Medical","Lab/Med/Hospital Equipment","Wightman & Parrish","Supplies and Services related expenditure","10/05/2020","79.43","Director of Housing, Neighbourhood and Building Services"
"Transportation Conveyor","Parking Lots, Meters, Garages","3c_*portsmouth City Coun","Transport related expenditure","10/05/2020","1.33","Director of Children's Services and Education"
"Equipment And Furniture","Household Appliance Stores","Ao Retail Limited","Supplies and Services related expenditure","10/05/2020","416.67","Director of Children's Services and Education"
"Medical","Lab/Med/Hospital Equipment","Wightman & Parrish","Supplies and Services related expenditure","10/05/2020","706.80","Director of Housing, Neighbourhood and Building Services"
"Type of Retail Store","Grocery Stores/Supermarkets","Tesco Store 3055","Supplies and Services related expenditure","10/05/2020","19.38","Director of Children's Services and Education"
"Type of Retail Store","Grocery Stores/Supermarkets","Tesco Store 3055","Supplies and Services related expenditure","10/05/2020","49.57","Director of Children's Services and Education"
"Type of Retail Store","Grocery Stores/Supermarkets","Www.Iceland.Co.Uk","Supplies and Services related expenditure","10/05/2020","117.62","Director of Adult Services"
"Business To Business Facility/","Electrical Parts/Equipment","Edmundson Electrical","Premises related expenditure","10/05/2020","63.60","Director of Portsmouth International Port"
"Utility","Utilities/Elec/Gas/H2O/Sani","Express Gas Centre","Supplies and Services related expenditure","10/05/2020","23.81","Director of Adult Services"
"Caterers Food","Caterers","Booker Limited Portsmouth","Supplies and Services related expenditure","10/05/2020","22.25","Director of Adult Services"
"Caterers Food","Caterers","Booker Limited Portsmouth","Supplies and Services related expenditure","10/05/2020","14.55","Director of Adult Services"
"Other Supplies","Misc Speciality Retail","Amznmktplace","Supplies and Services related expenditure","10/05/2020","2.82","Director of Children's Services and Education"
"Other Supplies","Misc Speciality Retail","Amznmktplace","Supplies and Services related expenditure","10/05/2020","3.48","Director of Children's Services and Education"
"Other Supplies","Misc Speciality Retail","Amznmktplace","Supplies and Services related expenditure","10/05/2020","6.00","Director of Children's Services and Education"
"Other Supplies","Misc Speciality Retail","Amznmktplace","Supplies and Services related expenditure","10/05/2020","3.99","Director of Children's Services and Education"
"Other Supplies","Misc Speciality Retail","Amznmktplace","Supplies and Services related expenditure","10/05/2020","17.56","Director of Children's Services and Education"
"Other Supplies","Misc Speciality Retail","Amznmktplace","Supplies and Services related expenditure","10/05/2020","4.98","Director of Children's Services and Education"
"Other Supplies","Misc Speciality Retail","Amznmktplace","Supplies and Services related expenditure","10/05/2020","8.73","Director of Children's Services and Education"
"Medical","Lab/Med/Hospital Equipment","Wightman & Parrish","Supplies and Services related expenditure","10/05/2020","38.77","Director of Housing, Neighbourhood and Building Services"
"Other Supplies","Department Stores","Southern Co-Op 0018","Supplies and Services related expenditure","10/05/2020","40.83","Director of Children's Services and Education"
"Other Supplies","Department Stores","Southern Co-Op 0018","Supplies and Services related expenditure","10/05/2020","40.83","Director of Children's Services and Education"
"Other Supplies","Department Stores","Southern Co-Op 0018","Supplies and Services related expenditure","10/05/2020","81.67","Director of Children's Services and Education"
"Facilities/Repair Supplies","Bicycle Shops/Sales/Service","Halfords 0384","Supplies and Services related expenditure","10/05/2020","3.67","Director of Children's Services and Education"
"Facilities/Repair Supplies","Bicycle Shops/Sales/Service","Halfords 0384","Supplies and Services related expenditure","10/05/2020","15.00","Director of Children's Services and Education"
"Eating And Drinking Places","Eating Places/Restaurants","Greggs Plc","Supplies and Services related expenditure","10/05/2020","20.00","Director of Children's Services and Education"
"Eating And Drinking Places","Fast Food Restaurants","Costa Coffee 43042195","Supplies and Services related expenditure","10/05/2020","20.00","Director of Children's Services and Education"
"Business To Business Eqpt/Furn","Stationery/Office Supplies","Www.Banneruk.Com","Supplies and Services related expenditure","10/05/2020","54.60","Director of Corporate Services"
"Other Supplies","Misc Speciality Retail","Amznmktplace","Supplies and Services related expenditure","10/05/2020","134.87","Director of Adult Services"
"Type of Retail Store","Grocery Stores/Supermarkets","Wm Morrisons Store Pick","Supplies and Services related expenditure","10/05/2020","67.96","Director of Children's Services and Education"
"Business To Business Eqpt/Furn","Stationery/Office Supplies","Www.Banneruk.Com","Supplies and Services related expenditure","10/05/2020","113.58","Director of Culture, Leisure & Regulatory Services"
"Auto/Vehicle Expenses","Auto Body Repair Shops","Www.","Supplies and Services related expenditure","10/05/2020","230.60","Director of Regeneration"
"Equipment And Furniture","Furniture/Equip Stores","Safelincs","Premises related expenditure","10/05/2020","5.78","Director of Children's Services and Education"
"Facilities/Repair Supplies","Glass/Paint/Wallpaper Store","Www.Thesafetycentre.Co","Premises related expenditure","10/05/2020","8.03","Director of Children's Services and Education"
"Other Supplies","Misc Speciality Retail","Amz*leyiyishenzhen","Supplies and Services related expenditure","10/05/2020","-16.23","Director of Children's Services and Education"
"Other Supplies","Misc Speciality Retail","Amznmktplace","Premises related expenditure","10/05/2020","39.36","Director of Children's Services and Education"
"Other Supplies","Misc Speciality Retail","Amznmktplace","Supplies and Services related expenditure","10/05/2020","63.70","Director of Children's Services and Education"
"Other Supplies","Misc Speciality Retail","Amznmktplace","Supplies and Services related expenditure","10/05/2020","115.88","Director of Children's Services and Education"
"Type of Retail Store","Grocery Stores/Supermarkets","Tesco Store 3055","Supplies and Services related expenditure","10/05/2020","85.01","Director of Children's Services and Education"
"Business To Business Eqpt/Furn","Stationery/Office Supplies","Www.Banneruk.Com","Supplies and Services related expenditure","10/05/2020","15.93","Director of Adult Services"
"Business To Business Eqpt/Furn","Stationery/Office Supplies","Www.Banneruk.Com","Supplies and Services related expenditure","10/05/2020","42.47","Director of Adult Services"
"Miscellaneous","Charitable/Soc Service Orgs","The Salvation Army","Capital related expenditure","10/05/2020","240.00","Capital - Housing RA"
"Miscellaneous","Charitable/Soc Service Orgs","The Salvation Army","Capital related expenditure","10/05/2020","290.00","Capital - Housing RA"
"Miscellaneous","Charitable/Soc Service Orgs","The Salvation Army","Capital related expenditure","10/05/2020","480.00","Capital - Housing RA"
"Facilities/Repair Supplies","Lawn/Garden Supply/Nursery","Merry Mower Services Lt","Supplies and Services related expenditure","10/05/2020","256.19","Director of Culture, Leisure & Regulatory Services"
"Facilities/Repair Supplies","Lawn/Garden Supply/Nursery","Carters Of Swanwic","Supplies and Services related expenditure","10/05/2020","285.64","Director of Housing, Neighbourhood and Building Services"
"Government Service","Schools - Default","National Ed Group Ltd","Employees related expenditure","10/05/2020","50.00","Director of Children's Services and Education"
"Type of Retail Store","Barber/Beauty Shops","The Southern School Of","Supplies and Services related expenditure","10/05/2020","176.00","Director of Housing, Neighbourhood and Building Services"
"Business Expenses/Services","Postage Stamps","Post Office Counter","Supplies and Services related expenditure","10/05/2020","91.50","Director of Housing, Neighbourhood and Building Services"
"Facilities/Repair Supplies","Home Supply Warehouse Stores","B & Q 1260","Premises related expenditure","10/05/2020","44.06","Director of Adult Services"
"Other Supplies","Gift/Card/Novelty And Souvenir Stores","Victory Trophies","Supplies and Services related expenditure","10/05/2020","47.50","Director of Children's Services and Education"
"Miscellaneous","Continuity/Subscription Mercht","Zoom.Gbp","Supplies and Services related expenditure","10/05/2020","117.93","Director of Children's Services and Education"
"Type of Retail Store","Artist/Craft Shops","Baker Ross","Supplies and Services related expenditure","10/05/2020","13.29","Director of Children's Services and Education"
"Type of Retail Store","Grocery Stores/Supermarkets","Asda Groceries Online","Supplies and Services related expenditure","10/05/2020","10.23","Director of Children's Services and Education"
"Type of Retail Store","Grocery Stores/Supermarkets","Asda Groceries Online","Supplies and Services related expenditure","10/05/2020","1.67","Director of Children's Services and Education"
"Type of Retail Store","Grocery Stores/Supermarkets","Asda Groceries Online","Supplies and Services related expenditure","10/05/2020","1.20","Director of Children's Services and Education"
"Type of Retail Store","Grocery Stores/Supermarkets","Asda Groceries Online","Supplies and Services related expenditure","10/05/2020","74.16","Director of Children's Services and Education"
"Business Expenses/Services","Stationery Stores","Www.Tts-Groups.Co.Uk","Supplies and Services related expenditure","10/05/2020","11.99","Director of Children's Services and Education"
"Other Supplies","Misc Speciality Retail","Amznmktplace","Supplies and Services related expenditure","10/05/2020","24.99","Director of Children's Services and Education"
"Business To Business Eqpt/Furn","Computer Software Stores","Creativemaths4all","Supplies and Services related expenditure","10/05/2020","70.00","Director of Children's Services and Education"
"Business Expenses/Services","Stationery Stores","Whsmith.Co.Uk","Supplies and Services related expenditure","10/05/2020","697.50","Director of Children's Services and Education"
"Business Expenses/Services","Stationery Stores","Whsmith.Co.Uk","Supplies and Services related expenditure","10/05/2020","775.00","Director of Children's Services and Education"
"Miscellaneous","Charitable/Soc Service Orgs","Pp*ecrobertsce","Supplies and Services related expenditure","10/05/2020","189.60","Director of Children's Services and Education"
"Eating And Drinking Places","Eating Places/Restaurants","Greggs Plc","Supplies and Services related expenditure","10/05/2020","2.35","Director of Children's Services and Education"
"Type of Retail Store","Grocery Stores/Supermarkets","Tesco Store 3055","Supplies and Services related expenditure","10/05/2020","5.10","Director of Children's Services and Education"
"Type of Retail Store","Grocery Stores/Supermarkets","Tesco Store 3048","Supplies and Services related expenditure","10/05/2020","80.00","Director of Children's Services and Education"
"Business Expenses/Services","Postage Stamps","Post Office Counter","Supplies and Services related expenditure","10/05/2020","34.89","Director of Children's Services and Education"
"Business To Business Facility/","Industrial Supplies - Def","Arco Limited (Sap)","Supplies and Services related expenditure","10/05/2020","25.82","Director of Housing, Neighbourhood and Building Services"
"Facilities/Repair Supplies","Home Supply Warehouse Stores","B & Q 1260","Supplies and Services related expenditure","10/05/2020","10.84","Director of Adult Services"
"Personal Service Provider","Accountants/Auditors/Bookpr","Www.Aat-Org.Uk","Supplies and Services related expenditure","10/05/2020","99.00","Director of Finance & Resources"
"Business Expenses/Services","Postage Stamps","Royal Mail Charges","Supplies and Services related expenditure","10/05/2020","1.50","Director of Children's Services and Education"
"Type of Retail Store","Grocery Stores/Supermarkets","Asda Groceries Online","Supplies and Services related expenditure","10/05/2020","4.17","Director of Children's Services and Education"
"Type of Retail Store","Grocery Stores/Supermarkets","Asda Groceries Online","Supplies and Services related expenditure","10/05/2020","32.70","Director of Children's Services and Education"
"Type of Retail Store","Grocery Stores/Supermarkets","Asda Groceries Online","Supplies and Services related expenditure","10/05/2020","6.00","Director of Children's Services and Education"
"Type of Retail Store","Grocery Stores/Supermarkets","Asda Groceries Online","Supplies and Services related expenditure","10/05/2020","25.49","Director of Children's Services and Education"
"Business To Business Facility/","Industrial Supplies - Def","Arco Limited (Sap)","Supplies and Services related expenditure","10/05/2020","237.30","Director of Adult Services"
"Business To Business Eqpt/Furn","Stationery/Office Supplies","Www.Banneruk.Com","Supplies and Services related expenditure","10/05/2020","68.21","Director of Adult Services"
"Business To Business Eqpt/Furn","Stationery/Office Supplies","Www.Banneruk.Com","Supplies and Services related expenditure","10/05/2020","264.81","Director of Adult Services"
"Business To Business Other Sup","Uniforms & Commercial Clothing","Alexandra Website","Supplies and Services related expenditure","10/05/2020","180.39","Director of Housing, Neighbourhood and Building Services"
"Type of Retail Store","Sporting Goods Stores","Millets","Supplies and Services related expenditure","10/05/2020","98.33","Director of Housing, Neighbourhood and Building Services"
"Facilities/Repair Supplies","Bicycle Shops/Sales/Service","Halfords 0852","Transport related expenditure","10/05/2020","47.83","Director of Housing, Neighbourhood and Building Services"
"Government Service","Schools - Default","Pearson Ed Ltd","Supplies and Services related expenditure","10/02/2020","288.98","Director of Children's Services and Education"
"Hotels And Motels","Premier Travel Inns","Premier Inn40012705","Agency and Third Party Payments related expenditure","10/05/2020","260.92","Director of Housing, Neighbourhood and Building Services"
"Other Supplies","Misc Speciality Retail","Amazon.Co.Uk","Supplies and Services related expenditure","10/05/2020","47.41","Director of Children's Services and Education"
"Other Supplies","Misc Speciality Retail","Amazon.Co.Uk","Supplies and Services related expenditure","10/05/2020","66.29","Director of Children's Services and Education"
"Hotels And Motels","Premier Travel Inns","Premier Inn44010625","Agency and Third Party Payments related expenditure","10/05/2020","70.47","Director of Housing, Neighbourhood and Building Services"
"Hotels And Motels","Premier Travel Inns","Premier Inn44523660","Supplies and Services related expenditure","10/05/2020","128.57","Director of Children's Services and Education"
"Type of Retail Store","Grocery Stores/Supermarkets","Asda Stores","Supplies and Services related expenditure","10/05/2020","95.05","Director of Housing, Neighbourhood and Building Services"
"Type of Retail Store","Grocery Stores/Supermarkets","Asda Stores","Supplies and Services related expenditure","10/05/2020","11.97","Director of Children's Services and Education"
"Type of Retail Store","Grocery Stores/Supermarkets","Asda Stores","Supplies and Services related expenditure","10/05/2020","124.92","Director of Children's Services and Education"
"Business To Business Facility/","Electrical Parts/Equipment","Rs Components","Supplies and Services related expenditure","10/05/2020","353.70","Director of Adult Services"
"Business To Business Facility/","Industrial Supplies - Def","Arco Limited (Sap)","Supplies and Services related expenditure","10/06/2020","15.69","Director of Housing, Neighbourhood and Building Services"
"Medical","Lab/Med/Hospital Equipment","Wightman & Parrish Ltd","Premises related expenditure","10/06/2020","79.58","Director of Housing, Neighbourhood and Building Services"
"Medical","Lab/Med/Hospital Equipment","Wightman & Parrish Ltd","Premises related expenditure","10/06/2020","314.14","Director of Housing, Neighbourhood and Building Services"
"Utility","Phone Serv/Equip Utility","Zoom.Us 888-799-9666","Agency and Third Party Payments related expenditure","10/06/2020","11.99","Director of Culture, Leisure & Regulatory Services"
"Equipment And Furniture","Household Appliance Stores","Www.Geminidataloggers.","Supplies and Services related expenditure","10/06/2020","30.00","Director of Culture, Leisure & Regulatory Services"
"Utility","Phone Serv/Equip Utility","Zoom.Us 888-799-9666","Supplies and Services related expenditure","10/06/2020","11.99","Director of Children's Services and Education"
"Transportation Conveyor","Passenger Railways","Thetrainline.Com","Transport related expenditure","10/06/2020","27.31","Director of Children's Services and Education"
"Type of Retail Store","Grocery Stores/Supermarkets","Tesco Stores 4579","Supplies and Services related expenditure","10/06/2020","3.53","Director of Children's Services and Education"
"Type of Retail Store","Grocery Stores/Supermarkets","Tesco Stores 4579","Supplies and Services related expenditure","10/06/2020","29.16","Director of Children's Services and Education"
"Amusement/Entertainment","Tourist Attractions And Xhbt","Drusillas Zoo","Supplies and Services related expenditure","10/06/2020","36.67","Director of Children's Services and Education"
"Other Supplies","Catalog Merchant","Www.Nisbets.Com","Supplies and Services related expenditure","10/06/2020","79.98","Director of Adult Services"
"Other Supplies","Misc Speciality Retail","Amznmktplace","Supplies and Services related expenditure","10/06/2020","8.29","Director of Children's Services and Education"
"Type of Retail Store","Record Shops","Apple.Com/Bill","Supplies and Services related expenditure","10/06/2020","19.99","Director of Adult Services"
"Other Supplies","Discount Stores","Argos Ltd","Supplies and Services related expenditure","10/06/2020","143.94","Director of Adult Services"
"Medical","Opticians","Community Eye Care Ltd","Supplies and Services related expenditure","10/06/2020","175.00","Director of Adult Services"
"Other Supplies","Misc Speciality Retail","Amznbusiness","Supplies and Services related expenditure","10/06/2020","298.26","Director of Regeneration"
"Facilities/Repair Supplies","Home Supply Warehouse Stores","B & Q 1260","Supplies and Services related expenditure","10/06/2020","104.18","Director of Regeneration"
"Type of Retail Store","Grocery Stores/Supermarkets","Wm Morrisons Store","Supplies and Services related expenditure","10/06/2020","5.91","Director of Children's Services and Education"
"Transportation Conveyor","Passenger Railways","Swrailway Tck Off","Transport related expenditure","10/06/2020","17.90","Director of Children's Services and Education"
"Type of Retail Store","Grocery Stores/Supermarkets","Tesco Stores 4611","Supplies and Services related expenditure","10/06/2020","70.00","Director of Children's Services and Education"
"Government Service","Govt Serv - Default","Pcc Internet Payment","Supplies and Services related expenditure","10/06/2020","11.00","Director of Children's Services and Education"
"Government Service","Govt Serv - Default","Pcc Internet Payment","Supplies and Services related expenditure","10/06/2020","11.00","Director of Children's Services and Education"
"Type of Retail Store","Electronics Sales","Currys Online","Supplies and Services related expenditure","10/06/2020","228.33","Director of Children's Services and Education"
"Business Expenses/Services","Stationery Stores","Www.Primaryteaching.Co","Supplies and Services related expenditure","10/06/2020","12.00","Director of Children's Services and Education"
"Other Supplies","Misc Speciality Retail","Amznmktplace","Supplies and Services related expenditure","10/06/2020","12.07","Director of Children's Services and Education"
"Other Supplies","Misc Speciality Retail","Amznmktplace","Supplies and Services related expenditure","10/06/2020","20.79","Director of Children's Services and Education"
"Other Supplies","Misc Speciality Retail","Www.Badgesplus.Co.Uk","Supplies and Services related expenditure","10/06/2020","26.72","Director of Children's Services and Education"
"Government Service","Schools - Default","Jmb Education","Supplies and Services related expenditure","10/06/2020","49.95","Director of Children's Services and Education"
"Business To Business Eqpt/Furn","Book Stores","Www.Heathbooks.Co.Uk","Supplies and Services related expenditure","10/06/2020","341.85","Director of Children's Services and Education"
"Miscellaneous","Member Organizations - Def","Music Mark","Supplies and Services related expenditure","10/06/2020","180.00","Director of Children's Services and Education"
"Other Supplies","Misc Speciality Retail","Amznmktplace","Supplies and Services related expenditure","10/06/2020","3.33","Director of Adult Services"
"Facilities/Repair Supplies","Lumber/Build. Supply Stores","Eurocell","Supplies and Services related expenditure","10/06/2020","32.80","Director of Housing, Neighbourhood and Building Services"
"Transportation Conveyor","Taxicabs/Limousines","Uber *trip","Transport related expenditure","10/06/2020","4.43","Director of Children's Services and Education"
"Transportation Conveyor","Taxicabs/Limousines","Uber *trip","Transport related expenditure","10/06/2020","12.40","Director of Children's Services and Education"
"Government Service","Govt Serv - Default","Portsmouth City Co","Transport related expenditure","10/06/2020","42.50","Director of Housing, Neighbourhood and Building Services"
"Type of Retail Store","Grocery Stores/Supermarkets","One Stop 2863","Supplies and Services related expenditure","10/06/2020","6.25","Director of Culture, Leisure & Regulatory Services"
"Health Services And Supplies","Hearing Aid/Sales/Service","Nrs Healthcare","Supplies and Services related expenditure","10/06/2020","24.78","Director of Adult Services"
"Facilities/Repair Supplies","Home Supply Warehouse Stores","B & Q 1260","Supplies and Services related expenditure","10/06/2020","12.50","Director of Housing, Neighbourhood and Building Services"
"Facilities/Repair Supplies","Lumber/Build. Supply Stores","Screwfix Direct","Supplies and Services related expenditure","10/06/2020","82.19","Director of Housing, Neighbourhood and Building Services"
"Facilities/Repair Supplies","Lumber/Build. Supply Stores","Screwfix Direct","Supplies and Services related expenditure","10/06/2020","230.80","Director of Housing, Neighbourhood and Building Services"
"Type of Retail Store","Grocery Stores/Supermarkets","Asda Groceries Online","Supplies and Services related expenditure","10/06/2020","-2.58","Director of Adult Services"
"Type of Retail Store","Grocery Stores/Supermarkets","Asda Groceries Online","Supplies and Services related expenditure","10/06/2020","135.51","Director of Adult Services"
"Business To Business Facility/","Electrical Parts/Equipment","Edmundson Electrical","Premises related expenditure","10/06/2020","67.55","Director of Portsmouth International Port"
"Business To Business Eqpt/Furn","Stationery/Office Supplies","Www.Banneruk.Com","Supplies and Services related expenditure","10/06/2020","19.83","Director of Adult Services"
"Miscellaneous","Charitable/Soc Service Orgs","Award Scheme Ltd","Supplies and Services related expenditure","10/06/2020","22.00","Director of Housing, Neighbourhood and Building Services"
"Eating And Drinking Places","Bars/Taverns/Lounges/Discos","Farmhouse","Departmental Recharges related expenditure","10/06/2020","556.04","Director of Adult Services"
"Business To Business Facility/","Industrial Supplies - Def","Arco Limited (Ahpp)","Supplies and Services related expenditure","10/06/2020","46.64","Director of Portsmouth International Port"
"Other Supplies","Misc Speciality Retail","Amznmktplace","Supplies and Services related expenditure","10/06/2020","63.19","Director of Children's Services and Education"
"Facilities/Repair Supplies","Home Supply Warehouse Stores","B & Q 1260","Premises related expenditure","10/06/2020","26.67","Director of Adult Services"
"Other Supplies","Discount Stores","Argos Ltd","Supplies and Services related expenditure","10/06/2020","53.28","Director of Culture, Leisure & Regulatory Services"
"Type of Retail Store","Grocery Stores/Supermarkets","Fruit Basket Ltd","Supplies and Services related expenditure","10/06/2020","68.79","Director of Culture, Leisure & Regulatory Services"
"Transportation Conveyor","Passenger Railways","Trainline","Transport related expenditure","10/06/2020","95.09","Director of Children's Services and Education"
"Eating And Drinking Places","Eating Places/Restaurants","Coffee Cup","Supplies and Services related expenditure","10/06/2020","5.21","Director of Children's Services and Education"
"Type of Retail Store","Grocery Stores/Supermarkets","Asda Stores","Supplies and Services related expenditure","10/06/2020","8.20","Director of Housing, Neighbourhood and Building Services"
"Type of Retail Store","Grocery Stores/Supermarkets","Asda Stores","Supplies and Services related expenditure","10/06/2020","80.70","Director of Housing, Neighbourhood and Building Services"
"Government Service","Govt Serv - Default","Portsmouth City Co","Transport related expenditure","10/06/2020","63.33","Director of Children's Services and Education"
"Government Service","Govt Serv - Default","Portsmouth City Co","Transport related expenditure","10/06/2020","63.33","Director of Children's Services and Education"
"Medical","Lab/Med/Hospital Equipment","Essentialaids.Com Ltd","Supplies and Services related expenditure","10/06/2020","13.98","Director of Children's Services and Education"
"Government Service","Colleges/Univ/Jc/Profession","Gls Educational Su","Supplies and Services related expenditure","10/06/2020","42.75","Director of Children's Services and Education"
"Type of Retail Store","Grocery Stores/Supermarkets","Lidl Gb","Supplies and Services related expenditure","10/06/2020","4.12","Director of Adult Services"
"Business To Business Eqpt/Furn","Stationery/Office Supplies","Www.Banneruk.Com","Supplies and Services related expenditure","10/06/2020","41.65","Director of Housing, Neighbourhood and Building Services"
"Business To Business Eqpt/Furn","Stationery/Office Supplies","Www.Banneruk.Com","Supplies and Services related expenditure","10/06/2020","17.97","Director of Housing, Neighbourhood and Building Services"
"Business To Business Eqpt/Furn","Stationery/Office Supplies","Www.Banneruk.Com","Supplies and Services related expenditure","10/06/2020","54.14","Director of Housing, Neighbourhood and Building Services"
"Business To Business Eqpt/Furn","Stationery/Office Supplies","Www.Banneruk.Com","Supplies and Services related expenditure","10/06/2020","66.64","Director of Housing, Neighbourhood and Building Services"
"Medical","Lab/Med/Hospital Equipment","Wightman & Parrish","Premises related expenditure","10/06/2020","69.32","Director of Housing, Neighbourhood and Building Services"
"Personal Service Provider","Legal Services Attorneys","Andrew & Andrew Solici","Supplies and Services related expenditure","10/06/2020","150.00","Director of Children's Services and Education"
"Equipment And Furniture","Household Appliance Stores","Ao Retail Limited","Supplies and Services related expenditure","10/06/2020","295.00","Director of Children's Services and Education"
"Other Supplies","Department Stores","The Range","Supplies and Services related expenditure","10/06/2020","16.67","Director of Children's Services and Education"
"Type of Retail Store","Electronics Sales","Comms Express Ltd","Supplies and Services related expenditure","10/06/2020","151.00","Director of Corporate Services"
"Government Service","Govt Serv - Default","Dvla Driver Online","Transport related expenditure","10/06/2020","28.33","Director of Children's Services and Education"
"Government Service","Govt Serv - Default","Dvla Driver Online","Transport related expenditure","10/06/2020","28.33","Director of Children's Services and Education"
"Other Supplies","Misc Speciality Retail","Amznmktplace","Premises related expenditure","10/06/2020","8.33","Director of Children's Services and Education"
"Business To Business Facility/","Hardware Equipment/Supplies","Www.Lampshoponline.Co.Uk","Premises related expenditure","10/06/2020","20.92","Director of Children's Services and Education"
"Facilities/Repair Supplies","Home Supply Warehouse Stores","Anylamp","Premises related expenditure","10/06/2020","53.98","Director of Children's Services and Education"
"Other Supplies","Misc Speciality Retail","Amznmktplace","Supplies and Services related expenditure","10/06/2020","69.24","Director of Children's Services and Education"
"Type of Retail Store","Grocery Stores/Supermarkets","Asda","Supplies and Services related expenditure","10/06/2020","20.00","Director of Children's Services and Education"
"Facilities/Repair Supplies","Home Supply Warehouse Stores","B&q Direct","Premises related expenditure","10/06/2020","7.13","Director of Children's Services and Education"
"Other Supplies","Misc Speciality Retail","Amznmktplace","Premises related expenditure","10/06/2020","20.83","Director of Children's Services and Education"
"Other Supplies","Discount Stores","Argos Ltd","Supplies and Services related expenditure","10/06/2020","22.48","Director of Housing, Neighbourhood and Building Services"
"Other Supplies","Misc Speciality Retail","Amznmktplace","Supplies and Services related expenditure","10/06/2020","136.69","Director of Corporate Services"
"Other Supplies","Misc Speciality Retail","Amznmktplace Amazon.Co.Uk","Supplies and Services related expenditure","10/06/2020","2.66","Director of Adult Services"
"Other Supplies","Misc Speciality Retail","Amznmktplace Amazon.Co.Uk","Supplies and Services related expenditure","10/06/2020","24.54","Director of Adult Services"
"Medical","Lab/Med/Hospital Equipment","Wightman & Parrish Ltd","Premises related expenditure","10/06/2020","289.20","Director of Adult Services"
"Type of Retail Store","Grocery Stores/Supermarkets","Tesco Stores 6679","Supplies and Services related expenditure","10/06/2020","15.45","Director of Adult Services"
"Other Supplies","Misc Speciality Retail","Amznmktplace Amazon.Co.Uk","Supplies and Services related expenditure","10/06/2020","20.95","Director of Adult Services"
"Type of Retail Store","Grocery Stores/Supermarkets","Lidl Gb","Supplies and Services related expenditure","10/06/2020","14.91","Director of Children's Services and Education"
"Type of Retail Store","Grocery Stores/Supermarkets","Tesco Store 3055","Supplies and Services related expenditure","10/06/2020","22.30","Director of Children's Services and Education"
"Type of Retail Store","Grocery Stores/Supermarkets","Tesco Store 3055","Supplies and Services related expenditure","10/06/2020","10.58","Director of Children's Services and Education"
"Type of Retail Store","Grocery Stores/Supermarkets","Tesco Store 3055","Supplies and Services related expenditure","10/06/2020","14.19","Director of Children's Services and Education"
"Facilities/Repair Supplies","Lumber/Build. Supply Stores","C Brewer & Sons","Supplies and Services related expenditure","10/06/2020","-45.25","Director of Culture, Leisure & Regulatory Services"
"Facilities/Repair Supplies","Lumber/Build. Supply Stores","C Brewer & Sons","Supplies and Services related expenditure","10/06/2020","53.95","Director of Culture, Leisure & Regulatory Services"
"Business To Business Eqpt/Furn","Computer Software Stores","National Elf Service","Supplies and Services related expenditure","10/06/2020","293.50","Director of Children's Services and Education"
"Digital Goods","Digital Goods - Large Digital Goods Merchant","Playstationnetwork","Agency and Third Party Payments related expenditure","10/06/2020","4.52","Director of Children's Services and Education"
"Digital Goods","Digital Goods - Games","Playstationnetwork","Agency and Third Party Payments related expenditure","10/06/2020","6.99","Director of Children's Services and Education"
"Other Supplies","Misc Speciality Retail","Max Spielmann Ltd","Agency and Third Party Payments related expenditure","10/06/2020","8.33","Director of Children's Services and Education"
"Type of Retail Store","Grocery Stores/Supermarkets","Tesco Stores 4579","Supplies and Services related expenditure","10/06/2020","6.67","Director of Children's Services and Education"
"Type of Retail Store","Grocery Stores/Supermarkets","Tesco Stores 4579","Supplies and Services related expenditure","10/06/2020","3.80","Director of Children's Services and Education"
"Facilities/Repair Supplies","Home Supply Warehouse Stores","B & Q 1260","Supplies and Services related expenditure","10/06/2020","5.52","Director of Adult Services"
"Facilities/Repair Supplies","Home Supply Warehouse Stores","B & Q 1260","Premises related expenditure","10/06/2020","20.02","Director of Adult Services"
"Facilities/Repair Supplies","Home Supply Warehouse Stores","B & Q 1260","Premises related expenditure","10/06/2020","41.17","Director of Adult Services"
"Utility","Phone Serv/Equip Utility","Zoom.Us 888-799-9666","Supplies and Services related expenditure","10/06/2020","11.99","Director of Regeneration"
"Medical","Med/Health Services - Def","Brit Psychological","Supplies and Services related expenditure","10/06/2020","41.00","Director of Children's Services and Education"
"Type of Retail Store","Grocery Stores/Supermarkets","Tesco Store 3055","Supplies and Services related expenditure","10/06/2020","4.50","Director of Children's Services and Education"
"Business To Business Eqpt/Furn","Stationery/Office Supplies","Www.Banneruk.Com","Supplies and Services related expenditure","10/06/2020","36.52","Director of Adult Services"
"Business Services","Business Services - Default","Www.Phs.Co.Uk","Premises related expenditure","10/06/2020","320.27","Director of Adult Services"
"Transportation Conveyor","Parking Lots, Meters, Garages","3c_*portsmouth City Coun","Supplies and Services related expenditure","10/06/2020","1.80","Director of Children's Services and Education"
"Eating And Drinking Places","Eating Places/Restaurants","The Briny","Supplies and Services related expenditure","10/06/2020","2.90","Director of Children's Services and Education"
"Business Expenses/Services","Postage Stamps","Post Office Counter","Supplies and Services related expenditure","10/06/2020","4.10","Director of Children's Services and Education"
"Business To Business Facility/","Industrial Supplies - Def","Arco Limited (Sap)","Supplies and Services related expenditure","10/06/2020","11.38","Director of Housing, Neighbourhood and Building Services"
"Medical","Lab/Med/Hospital Equipment","Wightman & Parrish Ltd","Premises related expenditure","10/06/2020","189.79","Director of Housing, Neighbourhood and Building Services"
"Business To Business Facility/","Industrial Supplies - Def","Arco Limited (Ahpp)","Supplies and Services related expenditure","10/06/2020","27.71","Director of Regeneration"
"Other Supplies","Misc Speciality Retail","Amznmktplace","Supplies and Services related expenditure","10/06/2020","28.30","Director of Regeneration"
"Business To Business Facility/","Industrial Supplies - Def","Arco Ltd","Supplies and Services related expenditure","10/06/2020","112.90","Director of Regeneration"
"Eating And Drinking Places","Eating Places/Restaurants","Flip Out Portsmouth","Agency and Third Party Payments related expenditure","10/06/2020","11.83","Director of Children's Services and Education"
"Eating And Drinking Places","Eating Places/Restaurants","Flip Out Portsmouth","Agency and Third Party Payments related expenditure","10/06/2020","11.83","Director of Children's Services and Education"
"Eating And Drinking Places","Eating Places/Restaurants","Flip Out Portsmouth","Agency and Third Party Payments related expenditure","10/06/2020","11.84","Director of Children's Services and Education"
"Type of Retail Store","Grocery Stores/Supermarkets","Tesco Stores 4579","Supplies and Services related expenditure","10/06/2020","69.95","Director of Children's Services and Education"
"Type of Retail Store","Grocery Stores/Supermarkets","Tesco Stores 4579","Supplies and Services related expenditure","10/06/2020","1.91","Director of Children's Services and Education"
"Type of Retail Store","Grocery Stores/Supermarkets","Tesco Stores 4579","Supplies and Services related expenditure","10/06/2020","4.07","Director of Children's Services and Education"
"Type of Retail Store","Grocery Stores/Supermarkets","Tesco Stores 4579","Premises related expenditure","10/06/2020","1.25","Director of Children's Services and Education"
"Type of Retail Store","Grocery Stores/Supermarkets","Sainsburys S/mkts","Supplies and Services related expenditure","10/06/2020","2.50","Director of Children's Services and Education"
"Transportation Conveyor","Passenger Railways","Swrailwayselfserve","Transport related expenditure","10/06/2020","3.92","Director of Children's Services and Education"
"Government Service","Govt Serv - Default","Portsmouth City Co","Transport related expenditure","10/06/2020","63.33","Director of Children's Services and Education"
"Miscellaneous","Member Organizations - Def","Www.Cips.Org","Supplies and Services related expenditure","10/06/2020","108.00","Director of Finance & Resources"
"Business To Business Facility/","Industrial Supplies - Def","Www.Arco.Co.Uk","Supplies and Services related expenditure","10/06/2020","3,595.68","Director of Adult Services"
"Business To Business Eqpt/Furn","Stationery/Office Supplies","Www.Banneruk.Com","Supplies and Services related expenditure","10/06/2020","21.79","Director of Housing, Neighbourhood and Building Services"
"Other Supplies","Misc Speciality Retail","Amznmktplace","Supplies and Services related expenditure","10/06/2020","24.62","Director of Corporate Services"
"-","#VALUE!","Debit Adjustment - Dispute Refund Reversal","Supplies and Services related expenditure","10/07/2020","27.40","Director of Children's Services and Education"
"Hotels And Motels","Premier Travel Inns","Premier Inn44012705","Agency and Third Party Payments related expenditure","10/06/2020","-92.36","Director of Housing, Neighbourhood and Building Services"
"Other Supplies","Misc Speciality Retail","Amazon.Co.Uk","Supplies and Services related expenditure","10/06/2020","15.99","Director of Children's Services and Education"
"Other Supplies","Misc Speciality Retail","Amazon.Co.Uk","Supplies and Services related expenditure","10/06/2020","10.00","Director of Children's Services and Education"
"Hotels And Motels","Premier Travel Inns","Premier Inn44537330","Supplies and Services related expenditure","10/06/2020","-34.93","Director of Adult Services"
"Hotels And Motels","Premier Travel Inns","Premier Inn44537330","Supplies and Services related expenditure","10/06/2020","363.43","Director of Adult Services"
"Other Supplies","Discount Stores","Argos Ltd","Supplies and Services related expenditure","10/06/2020","45.82","Director of Children's Services and Education"
"Business To Business Facility/","Electrical Parts/Equipment","Rs Components","Premises related expenditure","10/06/2020","27.74","Director of Portsmouth International Port"
"Other Supplies","Catalog Merchant","Www.Uk.Insight.Com","Supplies and Services related expenditure","10/06/2020","127.27","Director of Corporate Services"
"Business To Business Facility/","Electrical Parts/Equipment","Rs Components","Supplies and Services related expenditure","10/06/2020","21.70","Director of Regeneration"
"Other Supplies","Misc Speciality Retail","Amznmktplace","Supplies and Services related expenditure","10/07/2020","13.91","Director of Housing, Neighbourhood and Building Services"
"Government Service","Govt Serv - Default","Land Registry","Supplies and Services related expenditure","10/07/2020","3.00","Director of Housing, Neighbourhood and Building Services"
"Freight/Courier/Warehouse Svcs","Public Warehousing","Lok N Store","Premises related expenditure","10/07/2020","157.98","Director of Housing, Neighbourhood and Building Services"
"Freight/Courier/Warehouse Svcs","Public Warehousing","Lok N Store","Premises related expenditure","10/07/2020","58.35","Director of Housing, Neighbourhood and Building Services"
"Freight/Courier/Warehouse Svcs","Public Warehousing","Big Yellow - Portsmout","Premises related expenditure","10/07/2020","319.60","Director of Housing, Neighbourhood and Building Services"
"Eating And Drinking Places","Fast Food Restaurants","Costa Coffee 43040140","Supplies and Services related expenditure","10/07/2020","4.59","Director of Children's Services and Education"
"Business To Business Facility/","Industrial Supplies - Def","Arco Limited (Sap)","Supplies and Services related expenditure","10/07/2020","15.14","Director of Housing, Neighbourhood and Building Services"
"Medical","Lab/Med/Hospital Equipment","Wightman & Parrish Ltd","Premises related expenditure","10/07/2020","25.89","Director of Housing, Neighbourhood and Building Services"
"Transportation Conveyor","Local Commuter Transport","Stena Line Ltd","Supplies and Services related expenditure","10/07/2020","278.00","Director of Portsmouth International Port"
"Equipment And Furniture","Household Appliance Stores","Tlc Southern","Premises related expenditure","10/07/2020","21.96","Director of Regeneration"
"Other Supplies","Misc Speciality Retail","Amznmktplace","Supplies and Services related expenditure","10/07/2020","105.66","Director of Housing, Neighbourhood and Building Services"
"Facilities/Repair Supplies","Home Supply Warehouse Stores","B & Q 1260","Supplies and Services related expenditure","10/07/2020","37.43","Director of Regeneration"
"Other Supplies","Misc Speciality Retail","Amznmktplace","Premises related expenditure","10/07/2020","48.32","Director of Children's Services and Education"
"Other Supplies","Misc Speciality Retail","Amznmktplace Amazon.Co.Uk","Supplies and Services related expenditure","10/07/2020","4.98","Director of Children's Services and Education"
"Other Supplies","Misc Speciality Retail","Amznmktplace Amazon.Co.Uk","Supplies and Services related expenditure","10/07/2020","10.83","Director of Children's Services and Education"
"Other Supplies","Misc Speciality Retail","Amznmktplace","Supplies and Services related expenditure","10/07/2020","13.33","Director of Children's Services and Education"
"Other Supplies","Misc Speciality Retail","Amznmktplace Amazon.Co.Uk","Supplies and Services related expenditure","10/07/2020","31.40","Director of Children's Services and Education"
"Other Supplies","Misc Speciality Retail","Amznmktplace","Supplies and Services related expenditure","10/07/2020","5.16","Director of Culture, Leisure & Regulatory Services"
"Other Supplies","Department Stores","Southern Co-Op 0009","Supplies and Services related expenditure","10/07/2020","3.29","Director of Children's Services and Education"
"Other Supplies","Department Stores","Southern Co-Op 0009","Premises related expenditure","10/07/2020","3.33","Director of Children's Services and Education"
"Other Supplies","Misc Speciality Retail","Amznmktplace","Supplies and Services related expenditure","10/07/2020","5.83","Director of Children's Services and Education"
"Other Supplies","Department Stores","Southern Co-Op 0079","Supplies and Services related expenditure","10/07/2020","12.90","Director of Children's Services and Education"
"Other Supplies","Department Stores","Southern Co-Op 0079","Supplies and Services related expenditure","10/07/2020","5.50","Director of Children's Services and Education"
"Business To Business Eqpt/Furn","Computer Software Stores","Abc Does Ltd","Employees related expenditure","10/07/2020","95.00","Director of Children's Services and Education"
"Other Supplies","Misc Speciality Retail","Amznmktplace Amazon.Co.Uk","Supplies and Services related expenditure","10/07/2020","81.66","Director of Adult Services"
"Government Service","Govt Serv - Default","Portsmouth City Co","Transport related expenditure","10/07/2020","63.33","Director of Adult Services"
"Business Expenses/Services","Postage Stamps","Post Office Counter","Supplies and Services related expenditure","10/07/2020","34.83","Director of Children's Services and Education"
"Hotels And Motels","Travelodge","Travelodge Gb0000","Agency and Third Party Payments related expenditure","10/07/2020","147.00","Director of Housing, Neighbourhood and Building Services"
"Hotels And Motels","Travelodge","Travelodge Gb0000","Agency and Third Party Payments related expenditure","10/07/2020","1,440.69","Director of Housing, Neighbourhood and Building Services"
"Automobile Rental","Motor Home/Rv Rentals","Southsea Leisure Park","Agency and Third Party Payments related expenditure","10/07/2020","1,166.67","Director of Housing, Neighbourhood and Building Services"
"Automobile Rental","Motor Home/Rv Rentals","Southsea Leisure Park","Agency and Third Party Payments related expenditure","10/07/2020","315.00","Director of Housing, Neighbourhood and Building Services"
"Type of Retail Store","Grocery Stores/Supermarkets","Tesco Store 3055","Supplies and Services related expenditure","10/07/2020","1.50","Director of Children's Services and Education"
"Eating And Drinking Places","Fast Food Restaurants","McDonalds","Supplies and Services related expenditure","10/07/2020","4.56","Director of Children's Services and Education"
"Transportation Conveyor","Parking Lots, Meters, Garages","Southampton City Counc","Transport related expenditure","10/07/2020","1.67","Director of Regeneration"
"Type of Retail Store","Sporting Goods Stores","Sweatshop","Supplies and Services related expenditure","10/07/2020","75.00","Director of Regeneration"
"Eating And Drinking Places","Pkg Stores/Beer/Wine/Liquor","Krishna","Supplies and Services related expenditure","10/07/2020","6.90","Director of Children's Services and Education"
"Other Supplies","Misc Speciality Retail","Amznmktplace","Transport related expenditure","10/07/2020","65.83","Director of Adult Services"
"Facilities/Repair Supplies","Lumber/Build. Supply Stores","Screwfix Portsmouth","Supplies and Services related expenditure","10/07/2020","13.33","Director of Regeneration"
"Business To Business Facility/","Industrial Supplies - Def","Arco Limited (Ahpp)","Supplies and Services related expenditure","10/07/2020","49.83","Director of Housing, Neighbourhood and Building Services"
"Business To Business Facility/","Industrial Supplies - Def","Arco Limited (Sap)","Supplies and Services related expenditure","10/07/2020","112.74","Director of Housing, Neighbourhood and Building Services"
"Business To Business Services","Misc Publishing & Printing","Www.Solopress.Com","Supplies and Services related expenditure","10/07/2020","14.80","Director of Corporate Services"
"Government Service","Govt Serv - Default","Gen Register Office","Supplies and Services related expenditure","10/07/2020","14.00","Director of Children's Services and Education"
"Business To Business Eqpt/Furn","Stationery/Office Supplies","Www.Banneruk.Com","Supplies and Services related expenditure","10/07/2020","99.92","Director of Culture, Leisure & Regulatory Services"
"Transportation Conveyor","Bus Lines/Charter/Tour","Stagecoach South","Supplies and Services related expenditure","10/07/2020","25.30","Director of Children's Services and Education"
"Type of Retail Store","Grocery Stores/Supermarkets","Tesco Stores 2322","Supplies and Services related expenditure","10/07/2020","4.17","Director of Culture, Leisure & Regulatory Services"
"Other Supplies","Discount Stores","Argos Ltd","Supplies and Services related expenditure","10/07/2020","422.46","Director of Children's Services and Education"
"Other Supplies","Misc Speciality Retail","Amznmktplace","Supplies and Services related expenditure","10/07/2020","9.12","Director of Public Health"
"Type of Retail Store","Grocery Stores/Supermarkets","Marks&spencer Plc Saca","Supplies and Services related expenditure","10/07/2020","7.50","Director of Children's Services and Education"
"Other Supplies","Misc Speciality Retail","Amznmktplace","Supplies and Services related expenditure","10/07/2020","29.15","Director of Children's Services and Education"
"Government Service","Schools - Default","Www.First-Rescue.Co.Uk","Supplies and Services related expenditure","10/07/2020","276.00","Director of Portsmouth International Port"
"Type of Retail Store","Sporting Goods Stores","Bishopsport","Supplies and Services related expenditure","10/07/2020","29.95","Director of Adult Services"
"Medical","Lab/Med/Hospital Equipment","Wightman & Parrish Ltd","Premises related expenditure","10/07/2020","134.30","Director of Adult Services"
"Medical","Lab/Med/Hospital Equipment","Wightman & Parrish Ltd","Supplies and Services related expenditure","10/07/2020","34.49","Director of Adult Services"
"Medical","Lab/Med/Hospital Equipment","Wightman & Parrish Ltd","Supplies and Services related expenditure","10/07/2020","24.01","Director of Adult Services"
"Medical","Lab/Med/Hospital Equipment","Wightman & Parrish Ltd","Premises related expenditure","10/07/2020","100.43","Director of Adult Services"
"Type of Retail Store","Grocery Stores/Supermarkets","Www.Iceland.Co.Uk","Supplies and Services related expenditure","10/07/2020","37.70","Director of Adult Services"
"Facilities/Repair Supplies","Lumber/Build. Supply Stores","Www.Barrettsteel.Com","Premises related expenditure","10/07/2020","130.00","Director of Portsmouth International Port"
"Business To Business Facility/","Electrical Parts/Equipment","Edmundson Electrical","Premises related expenditure","10/07/2020","206.72","Director of Portsmouth International Port"
"Facilities/Repair Supplies","Lumber/Build. Supply Stores","F H Brundle","Premises related expenditure","10/07/2020","430.50","Director of Portsmouth International Port"
"Facilities/Repair Supplies","Lawn/Garden Supply/Nursery","M & S Enterprises","Supplies and Services related expenditure","10/07/2020","77.78","Director of Housing, Neighbourhood and Building Services"
"Hotels And Motels","Hotel Ibis","Hotel Ibis","Supplies and Services related expenditure","10/07/2020","59.00","Director of Children's Services and Education"
"Government Service","Govt Serv - Default","Hampshire County Counc","Supplies and Services related expenditure","10/07/2020","153.00","Director of Housing, Neighbourhood and Building Services"
"Other Supplies","Department Stores","The Range","Premises related expenditure","10/07/2020","4.16","Director of Housing, Neighbourhood and Building Services"
"Type of Retail Store","Grocery Stores/Supermarkets","Asda Stores","Supplies and Services related expenditure","10/07/2020","87.72","Director of Housing, Neighbourhood and Building Services"
"Other Supplies","Misc Speciality Retail","Amznmktplace","Supplies and Services related expenditure","10/07/2020","9.12","Director of Public Health"
"Type of Retail Store","Grocery Stores/Supermarkets","Lidl Gb","Supplies and Services related expenditure","10/07/2020","3.98","Director of Adult Services"
"Type of Retail Store","Grocery Stores/Supermarkets","Tesco Stores 6577","Supplies and Services related expenditure","10/07/2020","7.05","Director of Adult Services"
"Amusement/Entertainment","Commercial/Pro Sports","Goals Portsmouth - Recept","Supplies and Services related expenditure","10/07/2020","15.00","Director of Children's Services and Education"
"Business To Business Eqpt/Furn","Stationery/Office Supplies","Www.Banneruk.Com","Supplies and Services related expenditure","10/07/2020","14.50","Director of Adult Services"
"Transportation Conveyor","Local Commuter Transport","Www.Hovertravel.Com","Transport related expenditure","10/07/2020","49.20","Director of Children's Services and Education"
"Automobile Rental","Automobile Rental Agency","Southern Motor Contrac","Transport related expenditure","10/07/2020","762.51","Director of Regeneration"
"Automobile Rental","Automobile Rental Agency","Southern Motor Contrac","Transport related expenditure","10/07/2020","9,221.90","Director of Regeneration"
"Facilities/Repair Supplies","Home Supply Warehouse Stores","B & Q 1260","Supplies and Services related expenditure","10/07/2020","115.26","Director of Regeneration"
"Type of Retail Store","Grocery Stores/Supermarkets","Asda Groceries Online","Supplies and Services related expenditure","10/07/2020","-1.37","Director of Children's Services and Education"
"Type of Retail Store","Grocery Stores/Supermarkets","Asda Groceries Online","Supplies and Services related expenditure","10/07/2020","38.90","Director of Children's Services and Education"
"Type of Retail Store","Grocery Stores/Supermarkets","Asda Groceries Online","Supplies and Services related expenditure","10/07/2020","108.15","Director of Children's Services and Education"
"Type of Retail Store","Grocery Stores/Supermarkets","Asda Groceries Online","Premises related expenditure","10/07/2020","12.00","Director of Children's Services and Education"
"Business To Business Facility/","Hardware Equipment/Supplies","Croma Locksmiths & Sec","Supplies and Services related expenditure","10/07/2020","25.57","Director of Housing, Neighbourhood and Building Services"
"Business To Business Facility/","Industrial Supplies - Def","Arco Limited (Ahpp)","Supplies and Services related expenditure","10/07/2020","15.08","Director of Housing, Neighbourhood and Building Services"
"Type of Retail Store","Sporting Goods Stores","Decathlon","Supplies and Services related expenditure","10/07/2020","19.98","Director of Housing, Neighbourhood and Building Services"
"Other Supplies","Misc Speciality Retail","Amznmktplace","Supplies and Services related expenditure","10/07/2020","162.49","Director of Corporate Services"
"Miscellaneous","Member Organizations - Def","Rics Com Gbp Cybs","Employees related expenditure","10/07/2020","183.00","Director of Housing, Neighbourhood and Building Services"
"Miscellaneous","Charitable/Soc Service Orgs","The Salvation Army","Capital related expenditure","10/07/2020","250.00","Capital - Housing RA"
"Other Supplies","Misc Speciality Retail","Amznmktplace","Supplies and Services related expenditure","10/07/2020","52.50","Director of Children's Services and Education"
"Other Supplies","Misc Speciality Retail","Amznmktplace","Supplies and Services related expenditure","10/07/2020","19.93","Director of Children's Services and Education"
"Business To Business Eqpt/Furn","Computer Software Stores","Suffolk Owl Sanctuary","Supplies and Services related expenditure","10/07/2020","45.00","Director of Children's Services and Education"
"Other Supplies","Misc Speciality Retail","Amznbusiness","Supplies and Services related expenditure","10/07/2020","328.08","Director of Children's Services and Education"
"Equipment And Furniture","Household Appliance Stores","Ao Retail Limited","Supplies and Services related expenditure","10/07/2020","111.67","Director of Housing, Neighbourhood and Building Services"
"Business To Business Eqpt/Furn","Commercial Furniture","Portsdown Office Ltd","Supplies and Services related expenditure","10/07/2020","153.00","Director of Adult Services"
"Business Services","Business Services - Default","Www.Planningportal.Co.","Supplies and Services related expenditure","10/07/2020","462.00","Capital - Housing RA"
"Business Services","Business Services - Default","Www.Planningportal.Co.","Supplies and Services related expenditure","10/07/2020","20.83","Capital - Housing RA"
"Business To Business Eqpt/Furn","Stationery/Office Supplies","Www.Banneruk.Com","Supplies and Services related expenditure","10/07/2020","58.83","Director of Children's Services and Education"
"Utility","Phone Serv/Equip Utility","Zoom.Us 888-799-9666","Supplies and Services related expenditure","10/07/2020","11.99","Director of Corporate Services"
"Business To Business Eqpt/Furn","Stationery/Office Supplies","Www.Banneruk.Com","Supplies and Services related expenditure","10/07/2020","154.70","Director of Housing, Neighbourhood and Building Services"
"Other Supplies","Misc Speciality Retail","Amazon.Co.Uk","Supplies and Services related expenditure","10/07/2020","11.47","Director of Children's Services and Education"
"Miscellaneous","Auto Associations","Theaa *","Transport related expenditure","10/07/2020","75.00","Director of Children's Services and Education"
"Automobile Services & Supplies","Service Stations","Tesco Pfs 2339","Transport related expenditure","10/07/2020","66.58","Director of Children's Services and Education"
"Other Supplies","Misc Speciality Retail","Amznbusiness","Supplies and Services related expenditure","10/07/2020","33.30","Director of Children's Services and Education"
"Type of Retail Store","Grocery Stores/Supermarkets","Asda Groceries Online","Supplies and Services related expenditure","10/07/2020","50.30","Director of Children's Services and Education"
"Medical","Lab/Med/Hospital Equipment","Wightman & Parrish","Premises related expenditure","10/07/2020","55.85","Director of Adult Services"
"Type of Retail Store","Grocery Stores/Supermarkets","Tesco Store 3055","Supplies and Services related expenditure","10/07/2020","7.23","Director of Children's Services and Education"
"Type of Retail Store","Grocery Stores/Supermarkets","Tesco Store 3055","Supplies and Services related expenditure","10/07/2020","19.69","Director of Children's Services and Education"
"Type of Retail Store","Grocery Stores/Supermarkets","Sainsburys S/mkts","Supplies and Services related expenditure","10/07/2020","1.63","Director of Children's Services and Education"
"Type of Retail Store","Grocery Stores/Supermarkets","Sainsburys S/mkts","Supplies and Services related expenditure","10/07/2020","12.45","Director of Children's Services and Education"
"Type of Retail Store","Grocery Stores/Supermarkets","Sainsburys S/mkts","Supplies and Services related expenditure","10/07/2020","0.17","Director of Children's Services and Education"
"Other Supplies","Misc Speciality Retail","Amznbusiness","Supplies and Services related expenditure","10/07/2020","22.49","Director of Adult Services"
"Other Supplies","Misc Speciality Retail","Amznmktplace","Supplies and Services related expenditure","10/07/2020","55.32","Director of Culture, Leisure & Regulatory Services"
"Business To Business Facility/","Industrial Supplies - Def","Arco Limited (Sap)","Supplies and Services related expenditure","10/07/2020","42.33","Director of Housing, Neighbourhood and Building Services"
"Facilities Maintenance","Specialty Cleaning/Polishing","Cjs Portsmouth Limited","Premises related expenditure","10/07/2020","157.85","Director of Housing, Neighbourhood and Building Services"
"Medical","Lab/Med/Hospital Equipment","Wightman & Parrish Ltd","Premises related expenditure","10/07/2020","351.36","Director of Housing, Neighbourhood and Building Services"
"Other Supplies","Misc Speciality Retail","Timpson Ltd","Premises related expenditure","10/07/2020","1.20","Director of Children's Services and Education"
"Medical","Lab/Med/Hospital Equipment","Incchoice","Supplies and Services related expenditure","10/07/2020","88.71","Director of Adult Services"
"Type of Retail Store","Grocery Stores/Supermarkets","Lidl Gb Portsmouth","Supplies and Services related expenditure","10/07/2020","5.95","Director of Children's Services and Education"
"Type of Retail Store","Grocery Stores/Supermarkets","Lidl Gb Portsmouth","Supplies and Services related expenditure","10/07/2020","0.41","Director of Children's Services and Education"
"Eating And Drinking Places","Eating Places/Restaurants","Dominos Pizza UK & Irelan","Agency and Third Party Payments related expenditure","10/07/2020","55.71","Director of Children's Services and Education"
"Type of Retail Store","Grocery Stores/Supermarkets","Tesco Stores 4579","Supplies and Services related expenditure","10/07/2020","5.00","Director of Children's Services and Education"
"Type of Retail Store","Grocery Stores/Supermarkets","Tesco Stores 4579","Supplies and Services related expenditure","10/07/2020","7.87","Director of Children's Services and Education"
"Type of Retail Store","Grocery Stores/Supermarkets","Tesco Stores 4579","Supplies and Services related expenditure","10/07/2020","8.33","Director of Children's Services and Education"
"Type of Retail Store","Grocery Stores/Supermarkets","Tesco Stores 4579","Supplies and Services related expenditure","10/07/2020","2.46","Director of Children's Services and Education"
"Type of Retail Store","Grocery Stores/Supermarkets","Tesco Stores 4579","Supplies and Services related expenditure","10/07/2020","35.69","Director of Children's Services and Education"
"Equipment And Furniture","Household Appliance Stores","Power Ec Limited","Agency and Third Party Payments related expenditure","10/07/2020","290.83","Director of Children's Services and Education"
"Other Supplies","Catalog Merchant","Www.Nisbets.Com","Premises related expenditure","10/07/2020","32.16","Director of Children's Services and Education"
"Other Supplies","Misc Speciality Retail","Amznmktplace","Capital related expenditure","10/07/2020","76.38","Director of Children's Services and Education"
"Other Supplies","Misc Speciality Retail","Amznmktplace","Supplies and Services related expenditure","10/07/2020","19.39","Director of Children's Services and Education"
"Medical","Lab/Med/Hospital Equipment","Oaktree Products","Supplies and Services related expenditure","10/07/2020","1,070.05","Chief Exec"
"Other Supplies","PPE Emergency P","Www.None","Supplies and Services related expenditure","10/07/2020","16,104.00","Chief Exec"
"Medical","Lab/Med/Hospital Equipment","Wightman & Parrish","Premises related expenditure","10/07/2020","209.85","Director of Housing, Neighbourhood and Building Services"
"Business Services","Advertising Services","Business Builders Sout","Capital related expenditure","10/07/2020","180.00","Capital - Traffic & Transportation"
"Business To Business Facility/","Electrical Parts/Equipment","Rs Components","Premises related expenditure","10/07/2020","178.04","Director of Portsmouth International Port"
"Clothing Services","Family Clothing Stores","Primark","Supplies and Services related expenditure","10/07/2020","8.33","Director of Adult Services"
"Other Supplies","Misc Speciality Retail","Amazon.Co.Uk","Supplies and Services related expenditure","10/07/2020","10.83","Director of Children's Services and Education"
"Automobile Services & Supplies","Service Stations","Tesco Pfs 4274","Supplies and Services related expenditure","10/07/2020","76.67","Director of Housing, Neighbourhood and Building Services"
"Business To Business Eqpt/Furn","Stationery/Office Supplies","Www.Banneruk.Com","Supplies and Services related expenditure","10/08/2020","69.17","Director of Housing, Neighbourhood and Building Services"
"Type of Retail Store","Grocery Stores/Supermarkets","Asda Groceries Online","Supplies and Services related expenditure","10/08/2020","0.23","Director of Children's Services and Education"
"Type of Retail Store","Grocery Stores/Supermarkets","Asda Groceries Online","Supplies and Services related expenditure","10/08/2020","43.28","Director of Children's Services and Education"
"Facilities/Repair Supplies","Lumber/Build. Supply Stores","Screwfix Direct","Premises related expenditure","10/08/2020","14.16","Director of Adult Services"
"Business To Business Facility/","Industrial Supplies - Def","Arco Limited (Sap)","Supplies and Services related expenditure","10/08/2020","74.63","Director of Housing, Neighbourhood and Building Services"
"Personal Service Provider","Professional Services - Def","Thomson Reuters UK Ltd","Supplies and Services related expenditure","10/08/2020","132.50","Director of Corporate Services"
"Personal Service Provider","Professional Services - Def","Thomson Reuters UK Ltd","Supplies and Services related expenditure","10/08/2020","132.50","Director of Corporate Services"
"Hotels And Motels","Travelodge","Travelodge Gb0000","Agency and Third Party Payments related expenditure","10/08/2020","147.00","Director of Housing, Neighbourhood and Building Services"
"Hotels And Motels","Travelodge","Travelodge Gb0000","Agency and Third Party Payments related expenditure","10/08/2020","1,174.11","Director of Housing, Neighbourhood and Building Services"
"Hotels And Motels","Travelodge","Travelodge Gb0000","Agency and Third Party Payments related expenditure","10/08/2020","294.00","Director of Housing, Neighbourhood and Building Services"
"Hotels And Motels","Travelodge","Travelodge Gb0000","Agency and Third Party Payments related expenditure","10/08/2020","1,527.88","Director of Housing, Neighbourhood and Building Services"
"Type of Retail Store","Grocery Stores/Supermarkets","Sun Hung Chang","Supplies and Services related expenditure","10/08/2020","4.00","Director of Children's Services and Education"
"Business To Business Facility/","Industrial Supplies - Def","Arco Limited (Sap)","Supplies and Services related expenditure","10/08/2020","118.68","Director of Housing, Neighbourhood and Building Services"
"Auto/Vehicle Expenses","Automotive Tire Stores","Portsmouth - Protyre","Transport related expenditure","10/08/2020","103.21","Director of Housing, Neighbourhood and Building Services"
"Other Supplies","Misc Speciality Retail","Amznbusiness","Supplies and Services related expenditure","10/08/2020","13.74","Director of Children's Services and Education"
"Facilities/Repair Supplies","Home Supply Warehouse Stores","B & Q 1260","Supplies and Services related expenditure","10/08/2020","34.49","Director of Culture, Leisure & Regulatory Services"
"Other Supplies","Misc Speciality Retail","Amznmktplace","Premises related expenditure","10/08/2020","4.98","Director of Children's Services and Education"
"Equipment And Furniture","Furniture/Equip Stores","Ikea Ltd 125 Southampton","Supplies and Services related expenditure","10/08/2020","376.25","Director of Children's Services and Education"
"Business To Business Eqpt/Furn","Book Stores","The Hayling Island Bkshp","Supplies and Services related expenditure","10/08/2020","16.77","Director of Culture, Leisure & Regulatory Services"
"Other Supplies","Catalog Merchant","Www.Nisbets.Com","Supplies and Services related expenditure","10/08/2020","104.28","Director of Adult Services"
"Other Supplies","Misc Speciality Retail","Amznmktplace","Supplies and Services related expenditure","10/08/2020","17.52","Director of Adult Services"
"Government Service","Govt Serv - Default","Portsmouth City Co","Transport related expenditure","10/08/2020","63.33","Director of Adult Services"
"Type of Retail Store","Grocery Stores/Supermarkets","Tesco Store 3055","Supplies and Services related expenditure","10/08/2020","5.00","Director of Adult Services"
"Type of Retail Store","Grocery Stores/Supermarkets","Tesco Gift Card","Supplies and Services related expenditure","10/08/2020","20.00","Director of Adult Services"
"Other Supplies","Misc Speciality Retail","Amznbusiness","Supplies and Services related expenditure","10/08/2020","9.07","Director of Housing, Neighbourhood and Building Services"
"Facilities/Repair Supplies","Home Supply Warehouse Stores","B & Q 1260","Supplies and Services related expenditure","10/08/2020","165.39","Director of Regeneration"
"Other Supplies","Gift/Card/Novelty And Souvenir Stores","Victory Trophies","Supplies and Services related expenditure","10/08/2020","25.00","Director of Culture, Leisure & Regulatory Services"
"Business To Business Facility/","Industrial Supplies - Def","Arco Limited (Sap)","Supplies and Services related expenditure","10/08/2020","124.50","Director of Housing, Neighbourhood and Building Services"
"Amusement/Entertainment","Amusement/Rec Serv - Def","Scotkart","Supplies and Services related expenditure","10/08/2020","28.29","Director of Children's Services and Education"
"Business To Business Eqpt/Furn","Stationery/Office Supplies","Www.Banneruk.Com","Supplies and Services related expenditure","10/08/2020","3.50","Director of Culture, Leisure & Regulatory Services"
"Type of Retail Store","Grocery Stores/Supermarkets","Thank You","Agency and Third Party Payments related expenditure","10/08/2020","20.00","Director of Children's Services and Education"
"Type of Retail Store","Grocery Stores/Supermarkets","Wm Morrisons Store","Supplies and Services related expenditure","10/08/2020","10.83","Director of Children's Services and Education"
"Type of Retail Store","Grocery Stores/Supermarkets","Wm Morrisons Store","Supplies and Services related expenditure","10/08/2020","32.68","Director of Children's Services and Education"
"Other Supplies","Misc Speciality Retail","Amznmktplace","Supplies and Services related expenditure","10/08/2020","23.79","Director of Children's Services and Education"
"Other Supplies","Misc Speciality Retail","Amznbusiness","Supplies and Services related expenditure","10/08/2020","83.33","Director of Children's Services and Education"
"Business Expenses/Services","Books/Periodicals/Newspapers","Www.Wheelersbooks.Co.N","Supplies and Services related expenditure","10/08/2020","149.49","Director of Culture, Leisure & Regulatory Services"
"Business Expenses/Services","Books/Periodicals/Newspapers","Www.Wheelersbooks.Co.N","Supplies and Services related expenditure","10/08/2020","464.12","Director of Culture, Leisure & Regulatory Services"
"Government Service","Vocational/Trade Schools","Llg Enterprises Ltd","Supplies and Services related expenditure","10/08/2020","215.00","Director of Corporate Services"
"Government Service","Vocational/Trade Schools","Llg Enterprises Ltd","Supplies and Services related expenditure","10/08/2020","215.00","Director of Corporate Services"
"Government Service","Vocational/Trade Schools","Llg Enterprises Ltd","Supplies and Services related expenditure","10/08/2020","215.00","Chief Exec"
"Transportation Conveyor","Local Commuter Transport","Hovertravel Ltd","Transport related expenditure","10/08/2020","20.50","Director of Children's Services and Education"
"Other Supplies","Misc Speciality Retail","Amznbusiness","Employees related expenditure","10/08/2020","18.42","Director of Public Health"
"Other Supplies","Misc Speciality Retail","Amznbusiness","Supplies and Services related expenditure","10/08/2020","49.97","Director of Portsmouth International Port"
"Miscellaneous","Other Direct Marketers","Ubm","Supplies and Services related expenditure","10/08/2020","635.01","Director of Portsmouth International Port"
"Auto/Vehicle Expenses","Automotive Tire Stores","Hordean Tyres","Transport related expenditure","10/08/2020","40.00","Director of Portsmouth International Port"
"Other Supplies","Department Stores","Lockshopwarehouse","Supplies and Services related expenditure","10/08/2020","383.50","Director of Culture, Leisure & Regulatory Services"
"Government Service","Govt Serv - Default","Pcc Internet Payment","Supplies and Services related expenditure","10/08/2020","11.00","Director of Children's Services and Education"
"Government Service","Govt Serv - Default","Pcc Internet Payment","Supplies and Services related expenditure","10/08/2020","11.00","Director of Children's Services and Education"
"Business To Business Eqpt/Furn","Stationery/Office Supplies","Www.Banneruk.Com","Supplies and Services related expenditure","10/08/2020","14.99","Director of Children's Services and Education"
"Business Services","Business Services - Default","Sq *ucheck","Employees related expenditure","10/08/2020","6.00","Director of Children's Services and Education"
"Other Supplies","Misc Speciality Retail","Amznmktplace Amazon.Co.Uk","Premises related expenditure","10/08/2020","12.00","Director of Children's Services and Education"
"Other Supplies","Misc Speciality Retail","Amznmktplace Amazon.Co.Uk","Premises related expenditure","10/08/2020","10.08","Director of Children's Services and Education"
"Other Supplies","Misc Speciality Retail","Amznmktplace Amazon.Co.Uk","Premises related expenditure","10/08/2020","14.08","Director of Children's Services and Education"
"Other Supplies","Misc Speciality Retail","Amznmktplace Amazon.Co.Uk","Supplies and Services related expenditure","10/08/2020","29.32","Director of Children's Services and Education"
"Other Supplies","Misc Speciality Retail","Amznmktplace","Supplies and Services related expenditure","10/08/2020","62.42","Director of Children's Services and Education"
"Type of Retail Store","Grocery Stores/Supermarkets","Tesco Stores 6002","Supplies and Services related expenditure","10/08/2020","1.16","Director of Children's Services and Education"
"Type of Retail Store","Grocery Stores/Supermarkets","Tesco Stores 6002","Supplies and Services related expenditure","10/08/2020","100.52","Director of Children's Services and Education"
"Other Supplies","Misc Speciality Retail","Amznbusiness","Supplies and Services related expenditure","10/08/2020","14.94","Director of Children's Services and Education"
"Other Supplies","Misc Speciality Retail","Amznmktplace","Supplies and Services related expenditure","10/08/2020","66.58","Director of Children's Services and Education"
"Other Supplies","Misc Speciality Retail","Amznmktplace","Supplies and Services related expenditure","10/08/2020","307.96","Director of Adult Services"
"Eating And Drinking Places","Fast Food Restaurants","Costa Coffee 43040140","Supplies and Services related expenditure","10/08/2020","3.68","Director of Children's Services and Education"
"Business Expenses/Services","Books/Periodicals/Newspapers","Pavilion Publishing An","Supplies and Services related expenditure","10/08/2020","39.80","Director of Adult Services"
"Type of Retail Store","Grocery Stores/Supermarkets","Asda Stores","Supplies and Services related expenditure","10/08/2020","69.97","Director of Housing, Neighbourhood and Building Services"
"Government Service","Colleges/Univ/Jc/Profession","The Free Test Comp","Supplies and Services related expenditure","10/08/2020","124.17","Director of Housing, Neighbourhood and Building Services"
"Business To Business Eqpt/Furn","Stationery/Office Supplies","Www.Banneruk.Com","Supplies and Services related expenditure","10/08/2020","40.44","Director of Housing, Neighbourhood and Building Services"
"Business To Business Eqpt/Furn","Book Stores","Scholastic Ltd","Supplies and Services related expenditure","10/08/2020","-6.99","Director of Children's Services and Education"
"Government Service","Govt Serv - Default","Hampshire County Counc","Supplies and Services related expenditure","10/08/2020","17.55","Director of Children's Services and Education"
"Business To Business Facility/","Electrical Parts/Equipment","Cex Ltd","Supplies and Services related expenditure","10/08/2020","33.83","Director of Children's Services and Education"
"Other Supplies","Misc Speciality Retail","Wp-Timko Limited","Supplies and Services related expenditure","10/08/2020","58.74","Director of Culture, Leisure & Regulatory Services"
"Other Supplies","Misc Speciality Retail","Amznbusiness","Supplies and Services related expenditure","10/08/2020","25.99","Director of Children's Services and Education"
"Type of Retail Store","Sporting Goods Stores","Portsmouth Golf Centre","Supplies and Services related expenditure","10/08/2020","5.00","Director of Children's Services and Education"
"Type of Retail Store","Sporting Goods Stores","Portsmouth Golf Centre","Supplies and Services related expenditure","10/08/2020","5.00","Director of Children's Services and Education"
"Type of Retail Store","Sporting Goods Stores","Portsmouth Golf Centre","Supplies and Services related expenditure","10/08/2020","5.00","Director of Children's Services and Education"
"Eating And Drinking Places","Fast Food Restaurants","Starbucks Coffee","Supplies and Services related expenditure","10/08/2020","20.00","Director of Children's Services and Education"
"Business Expenses/Services","Postage Stamps","Post Office Counter","Supplies and Services related expenditure","10/08/2020","38.00","Director of Children's Services and Education"
"Other Supplies","Misc Speciality Retail","Amznmktplace","Premises related expenditure","10/08/2020","35.07","Director of Adult Services"
"Business To Business Eqpt/Furn","Stationery/Office Supplies","Www.Banneruk.Com","Supplies and Services related expenditure","10/08/2020","362.34","Director of Adult Services"
"Other Supplies","Misc Speciality Retail","Amznmktplace","Supplies and Services related expenditure","10/08/2020","68.21","Director of Children's Services and Education"
"Digital Goods","Digital Goods - Applications (Excludes Games)","Paddle.Net* Tmsplugin","Supplies and Services related expenditure","10/08/2020","46.63","Director of Corporate Services"
"Type of Retail Store","Grocery Stores/Supermarkets","Asda Groceries Online","Supplies and Services related expenditure","10/08/2020","4.55","Director of Children's Services and Education"
"Type of Retail Store","Grocery Stores/Supermarkets","Asda Groceries Online","Supplies and Services related expenditure","10/08/2020","48.32","Director of Children's Services and Education"
"Other Supplies","Misc Gen Merchandise - Def","Toughook","Premises related expenditure","10/08/2020","53.77","Director of Children's Services and Education"
"Type of Retail Store","Grocery Stores/Supermarkets","Asda Superstore","Supplies and Services related expenditure","10/08/2020","5.06","Director of Adult Services"
"Automobile Services & Supplies","Service Stations","Milton Road Servic","Transport related expenditure","10/08/2020","50.03","Director of Children's Services and Education"
"Automobile Services & Supplies","Service Stations","Milton Road Servic","Supplies and Services related expenditure","10/08/2020","1.69","Director of Children's Services and Education"
"Clothing Services","Mens/Womens Clothing Stores","Designs Alike","Supplies and Services related expenditure","10/08/2020","52.50","Director of Regeneration"
"Government Service","Business/Secretarial School","Paypal","Employees related expenditure","10/08/2020","20.00","Director of Children's Services and Education"
"Other Supplies","Misc Speciality Retail","Amznmktplace","Supplies and Services related expenditure","10/08/2020","28.33","Director of Children's Services and Education"
"Business To Business Eqpt/Furn","Book Stores","Amzn Mktp Uk","Supplies and Services related expenditure","10/08/2020","129.85","Director of Children's Services and Education"
"Other Supplies","Misc Speciality Retail","Amznmktplace","Supplies and Services related expenditure","10/08/2020","165.82","Director of Children's Services and Education"
"Facilities/Repair Supplies","Hardware Stores","Home Bargains","Supplies and Services related expenditure","10/08/2020","6.93","Director of Housing, Neighbourhood and Building Services"
"Other Supplies","Discount Stores","Poundland Ltd 1311","Supplies and Services related expenditure","10/08/2020","6.67","Director of Housing, Neighbourhood and Building Services"
"Other Supplies","Discount Stores","Poundland Ltd 1311","Supplies and Services related expenditure","10/08/2020","6.25","Director of Housing, Neighbourhood and Building Services"
"Other Supplies","Discount Stores","Argos Ltd","Supplies and Services related expenditure","10/08/2020","5.99","Director of Children's Services and Education"
"Business To Business Eqpt/Furn","Stationery/Office Supplies","Www.Banneruk.Com","Supplies and Services related expenditure","10/08/2020","11.74","Director of Finance & Resources"
"Business To Business Eqpt/Furn","Stationery/Office Supplies","Www.Banneruk.Com","Supplies and Services related expenditure","10/08/2020","49.35","Director of Finance & Resources"
"Type of Retail Store","Electronics Sales","Currys Pc World","Supplies and Services related expenditure","10/08/2020","83.33","Director of Housing, Neighbourhood and Building Services"
"Business To Business Facility/","Industrial Supplies - Def","Zychem Limited","Supplies and Services related expenditure","10/08/2020","12.00","Director of Children's Services and Education"
"Other Supplies","Misc Speciality Retail","Amznmktplace","Supplies and Services related expenditure","10/08/2020","3.92","Director of Adult Services"
"Other Supplies","Misc Speciality Retail","Amznmktplace","Premises related expenditure","10/08/2020","16.50","Director of Adult Services"
"Other Supplies","Misc Speciality Retail","Amznmktplace","Supplies and Services related expenditure","10/08/2020","20.58","Director of Adult Services"
"Type of Retail Store","Barber/Beauty Shops","Www.Salon-Services.Com","Supplies and Services related expenditure","10/08/2020","332.87","Director of Housing, Neighbourhood and Building Services"
"Business Expenses/Services","Postage Stamps","Post Office Counter","Supplies and Services related expenditure","10/08/2020","26.92","Director of Housing, Neighbourhood and Building Services"
"Miscellaneous","Continuity/Subscription Mercht","Zoom.Gbp","Supplies and Services related expenditure","10/08/2020","11.99","Chief Exec"
"Type of Retail Store","Grocery Stores/Supermarkets","Tesco Stores 4579","Premises related expenditure","10/08/2020","1.17","Director of Children's Services and Education"
"Type of Retail Store","Grocery Stores/Supermarkets","Tesco Stores 4579","Supplies and Services related expenditure","10/08/2020","47.62","Director of Children's Services and Education"
"Other Supplies","Misc Speciality Retail","Amznmktplace","Premises related expenditure","10/08/2020","177.08","Director of Children's Services and Education"
"Facilities/Repair Supplies","Home Supply Warehouse Stores","B & Q 1260","Premises related expenditure","10/08/2020","32.97","Director of Adult Services"
"Business To Business Facility/","Industrial Supplies - Def","Arco Limited (Sap)","Supplies and Services related expenditure","10/08/2020","21.03","Director of Housing, Neighbourhood and Building Services"
"Business To Business Facility/","Industrial Supplies - Def","Arco Limited (Sap)","Supplies and Services related expenditure","10/08/2020","125.27","Director of Housing, Neighbourhood and Building Services"
"Other Supplies","Misc Speciality Retail","Amznmktplace","Supplies and Services related expenditure","10/08/2020","18.32","Director of Children's Services and Education"
"Medical","Lab/Med/Hospital Equipment","Westholme","Supplies and Services related expenditure","10/08/2020","150.00","Director of Adult Services"
"Medical","Lab/Med/Hospital Equipment","Westholme","Supplies and Services related expenditure","10/08/2020","75.00","Director of Adult Services"
"Other Supplies","Gift/Card/Novelty And Souvenir Stores","Card Factory","Supplies and Services related expenditure","10/08/2020","6.64","Director of Children's Services and Education"
"Other Supplies","Misc Gen Merchandise - Def","B&m Retail Ltd","Supplies and Services related expenditure","10/08/2020","14.86","Director of Children's Services and Education"
"Amusement/Entertainment","Bowling Alleys","Amfbowling.Co.Uk","Supplies and Services related expenditure","10/08/2020","28.00","Director of Children's Services and Education"
"Business To Business Facility/","Hardware Equipment/Supplies","Croma Locksmiths & Sec","Supplies and Services related expenditure","10/08/2020","24.62","Director of Housing, Neighbourhood and Building Services"
"Transportation Conveyor","Bus Lines/Charter/Tour","First Bus - Web","Transport related expenditure","10/08/2020","23.50","Director of Children's Services and Education"
"Other Supplies","Department Stores","The Range","Premises related expenditure","10/08/2020","-32.48","Director of Culture, Leisure & Regulatory Services"
"Business Expenses/Services","Postage Stamps","Post Office Counter","Supplies and Services related expenditure","10/08/2020","2.45","Director of Children's Services and Education"
"Other Supplies","Misc Speciality Retail","Amznmktplace","Supplies and Services related expenditure","10/08/2020","24.99","Director of Housing, Neighbourhood and Building Services"
"Business To Business Facility/","Industrial Supplies - Def","Arco Limited (Sap)","Supplies and Services related expenditure","10/08/2020","19.86","Director of Housing, Neighbourhood and Building Services"
"Business To Business Facility/","Industrial Supplies - Def","Arco Limited (Sap)","Supplies and Services related expenditure","10/08/2020","50.04","Director of Housing, Neighbourhood and Building Services"
"Other Supplies","Misc Speciality Retail","Amznmktplace","Supplies and Services related expenditure","10/08/2020","17.79","Director of Children's Services and Education"
"Facilities Maintenance","Clean/Maint/Janitoral Serv","Suez Recycling&recover","Premises related expenditure","10/08/2020","45.69","Director of Children's Services and Education"
"Type of Retail Store","Electronics Sales","Currys Pc World","Supplies and Services related expenditure","10/08/2020","316.67","Director of Children's Services and Education"
"Business To Business Eqpt/Furn","Stationery/Office Supplies","Www.Banneruk.Com","Supplies and Services related expenditure","10/08/2020","32.88","Director of Regeneration"
"Business To Business Eqpt/Furn","Stationery/Office Supplies","Www.Banneruk.Com","Supplies and Services related expenditure","10/08/2020","81.70","Director of Regeneration"
"Business To Business Eqpt/Furn","Stationery/Office Supplies","Www.Banneruk.Com","Supplies and Services related expenditure","10/08/2020","8.79","Director of Regeneration"
"Other Supplies","Discount Stores","Argos Ltd","Agency and Third Party Payments related expenditure","10/08/2020","60.00","Director of Children's Services and Education"
"Government Service","Tax Payments","Dvla Vehicle Tax","Transport related expenditure","10/08/2020","167.50","Director of Children's Services and Education"
"Business To Business Facility/","Industrial Supplies - Def","Arco Limited (Sap)","Supplies and Services related expenditure","10/08/2020","5,240.00","Director of Adult Services"
"Type of Retail Store","Grocery Stores/Supermarkets","Wm Morrisons Store","Supplies and Services related expenditure","10/08/2020","5.00","Director of Children's Services and Education"
"Eating And Drinking Places","Fast Food Restaurants","McDonalds","Agency and Third Party Payments related expenditure","10/08/2020","11.75","Director of Children's Services and Education"
"Eating And Drinking Places","Fast Food Restaurants","McDonalds","Agency and Third Party Payments related expenditure","10/08/2020","1.19","Director of Children's Services and Education"
"Clothing Services","Misc Apparel/Access Shops","Niton Equipment Ltd","Supplies and Services related expenditure","10/08/2020","223.14","Director of Housing, Neighbourhood and Building Services"
"Type of Retail Store","Misc Food Stores - Default","Bransbury Park Butchers","Supplies and Services related expenditure","10/08/2020","116.74","Director of Adult Services"
"Business To Business Facility/","Industrial Supplies - Def","Arco Limited (Sap)","Supplies and Services related expenditure","10/02/2020","38.29","Director of Housing, Neighbourhood and Building Services"
"Business To Business Facility/","Industrial Supplies - Def","Arco Limited (Sap)","Supplies and Services related expenditure","10/05/2020","32.46","Director of Adult Services"
"Other Supplies","Misc Speciality Retail","Amznmktplace Amazon.Co.Uk","Supplies and Services related expenditure","10/08/2020","28.32","Director of Housing, Neighbourhood and Building Services"
"Medical","Lab/Med/Hospital Equipment","Wightman & Parrish","Premises related expenditure","10/08/2020","72.00","Director of Housing, Neighbourhood and Building Services"
"Medical","Lab/Med/Hospital Equipment","Wightman & Parrish","Premises related expenditure","10/08/2020","78.23","Director of Housing, Neighbourhood and Building Services"
"Medical","Lab/Med/Hospital Equipment","Wightman & Parrish","Premises related expenditure","10/08/2020","599.15","Director of Housing, Neighbourhood and Building Services"
"Transportation Conveyor","Local Commuter Transport","Www.Wightlink.Co.Uk","Transport related expenditure","10/08/2020","20.60","Director of Children's Services and Education"
"Hotels And Motels","Premier Travel Inns","Premier Inn 44536680","Supplies and Services related expenditure","10/08/2020","46.19","Director of Children's Services and Education"
"Business To Business Eqpt/Furn","Book Stores","Cambridge Univeristy Pres","Supplies and Services related expenditure","10/08/2020","66.15","Director of Children's Services and Education"
"Business To Business Other Sup","Uniforms & Commercial Clothing","Alexandra Website","Supplies and Services related expenditure","10/08/2020","43.17","Director of Adult Services"
"Personal Service Provider","Mgmt/Consult/Public Rel Ser","Tvlicensing.Co.Uk","Supplies and Services related expenditure","10/08/2020","157.50","Director of Adult Services"
"Business To Business Facility/","Industrial Supplies - Def","Arco Limited (Ahpp)","Supplies and Services related expenditure","10/08/2020","70.90","Director of Housing, Neighbourhood and Building Services"
"Other Supplies","Misc Speciality Retail","Amznbusiness","Supplies and Services related expenditure","10/08/2020","18.15","Director of Children's Services and Education"
"Medical","Lab/Med/Hospital Equipment","Wightman & Parrish","Premises related expenditure","10/08/2020","64.97","Director of Housing, Neighbourhood and Building Services"
"Medical","Lab/Med/Hospital Equipment","Wightman & Parrish Ltd","Supplies and Services related expenditure","10/08/2020","58.81","Director of Adult Services"
"Business To Business Facility/","Electrical Parts/Equipment","Rs Components","Premises related expenditure","10/08/2020","90.36","Director of Portsmouth International Port"
"Business To Business Facility/","Industrial Supplies - Def","Arco Limited (Ahpp)","Supplies and Services related expenditure","10/08/2020","7.74","Director of Housing, Neighbourhood and Building Services"
"Miscellaneous","Child Care Services","Www.Ymca-Fg.Org","Supplies and Services related expenditure","10/08/2020","125.00","Director of Children's Services and Education"
"Medical","Lab/Med/Hospital Equipment","Wightman & Parrish Ltd","Premises related expenditure","10/08/2020","20.87","Director of Adult Services"
"Type of Retail Store","Grocery Stores/Supermarkets","Fruit Basket Ltd","Supplies and Services related expenditure","10/08/2020","87.28","Director of Adult Services"
"Other Supplies","Misc Speciality Retail","Amznmktplace Amazon.Co.Uk","Supplies and Services related expenditure","10/09/2020","10.82","Director of Housing, Neighbourhood and Building Services"
"Other Supplies","Misc Speciality Retail","Amznmktplace Amazon.Co.Uk","Supplies and Services related expenditure","10/09/2020","3.74","Director of Housing, Neighbourhood and Building Services"
"Equipment And Furniture","Household Appliance Stores","Ebuyer (UK) Ltd","Supplies and Services related expenditure","10/09/2020","60.58","Director of Housing, Neighbourhood and Building Services"
"Freight/Courier/Warehouse Svcs","Public Warehousing","Www.Safestore.Co.Uk","Premises related expenditure","10/09/2020","69.10","Director of Housing, Neighbourhood and Building Services"
"Freight/Courier/Warehouse Svcs","Public Warehousing","Www.Safestore.Co.Uk","Premises related expenditure","10/09/2020","133.32","Director of Housing, Neighbourhood and Building Services"
"Hotels And Motels","Premier Travel Inns","Premier Inn44537330","Agency and Third Party Payments related expenditure","10/09/2020","262.82","Director of Housing, Neighbourhood and Building Services"
"Hotels And Motels","Travelodge","Travelodge Gb0000","Agency and Third Party Payments related expenditure","10/09/2020","-147.00","Director of Housing, Neighbourhood and Building Services"
"Hotels And Motels","Travelodge","Travelodge Gb0000","Agency and Third Party Payments related expenditure","10/09/2020","-1,174.11","Director of Housing, Neighbourhood and Building Services"
"Transportation Conveyor","Local Commuter Transport","Hovertravel Ltd","Agency and Third Party Payments related expenditure","10/09/2020","44.00","Director of Children's Services and Education"
"Transportation Conveyor","Local Commuter Transport","Hovertravel Ltd","Agency and Third Party Payments related expenditure","10/09/2020","145.00","Director of Children's Services and Education"
"Business To Business Facility/","Industrial Supplies - Def","Arco Limited (Sap)","Supplies and Services related expenditure","10/09/2020","27.73","Director of Housing, Neighbourhood and Building Services"
"Other Supplies","Misc Speciality Retail","Amznmktplace","Supplies and Services related expenditure","10/09/2020","41.63","Director of Housing, Neighbourhood and Building Services"
"Facilities/Repair Supplies","Home Supply Warehouse Stores","B & Q 1260","Supplies and Services related expenditure","10/09/2020","13.32","Director of Housing, Neighbourhood and Building Services"
"Facilities/Repair Supplies","Automotive Parts Stores","Autodoc*- 37484488","Transport related expenditure","10/09/2020","34.33","Director of Housing, Neighbourhood and Building Services"
"Utility","Utilities/Elec/Gas/H2O/Sani","Hughes Waste Limit","Premises related expenditure","10/09/2020","50.00","Director of Housing, Neighbourhood and Building Services"
"Auto/Vehicle Expenses","Automated Fuel Dispensers","Tesco Pay At Pump 4274","Premises related expenditure","10/09/2020","11.12","Director of Children's Services and Education"
"Facilities/Repair Services","Gen Contractors Residentl/Coml","Crown Decorating Centr","Premises related expenditure","10/09/2020","105.86","Director of Children's Services and Education"
"Type of Retail Store","Barber/Beauty Shops","The Parlour","Supplies and Services related expenditure","10/09/2020","10.00","Director of Children's Services and Education"
"Facilities/Repair Services","Gen Contractors Residentl/Coml","Sumup *flooring By A.Fri","Supplies and Services related expenditure","10/09/2020","1,020.00","Director of Children's Services and Education"
"Other Supplies","Misc Gen Merchandise - Def","Wilko.Com","Supplies and Services related expenditure","10/09/2020","26.67","Director of Children's Services and Education"
"Business To Business Eqpt/Furn","Durable Goods - Default","Seton","Supplies and Services related expenditure","10/09/2020","99.99","Director of Children's Services and Education"
"Hotels And Motels","Travelodge","Travelodge Gb0000","Agency and Third Party Payments related expenditure","10/09/2020","141.75","Director of Housing, Neighbourhood and Building Services"
"Hotels And Motels","Travelodge","Travelodge Gb0000","Agency and Third Party Payments related expenditure","10/09/2020","1,056.89","Director of Housing, Neighbourhood and Building Services"
"Auto/Vehicle Expenses","Auto Service Shops/Non Dealer","Boarhunt Vehicle Services","Transport related expenditure","10/09/2020","96.00","Director of Adult Services"
"Business To Business Facility/","Industrial Supplies - Def","Arco Limited (Ahpp)","Supplies and Services related expenditure","10/09/2020","188.84","Director of Housing, Neighbourhood and Building Services"
"Business Services","Advertising Services","Facebk Zgayfwa8z2","Supplies and Services related expenditure","10/09/2020","300.00","Director of Corporate Services"
"Transportation Conveyor","Passenger Railways","Swrailway Tck Off","Supplies and Services related expenditure","10/09/2020","175.00","Director of Children's Services and Education"
"Other Supplies","Misc Speciality Retail","Amznmktplace","Supplies and Services related expenditure","10/09/2020","5.38","Director of Adult Services"
"Other Supplies","Gift/Card/Novelty And Souvenir Stores","Www.Voucherexpress.Co.","Supplies and Services related expenditure","10/09/2020","25.00","Director of Children's Services and Education"
"Medical","Lab/Med/Hospital Equipment","Wightman & Parrish Ltd","Supplies and Services related expenditure","10/09/2020","96.40","Director of Adult Services"
"Type of Retail Store","Grocery Stores/Supermarkets","One Stop 1339","Supplies and Services related expenditure","10/09/2020","1.90","Director of Children's Services and Education"
"Type of Retail Store","Grocery Stores/Supermarkets","Www.Iceland.Co.Uk","Supplies and Services related expenditure","10/09/2020","-8.00","Director of Adult Services"
"Type of Retail Store","Grocery Stores/Supermarkets","Www.Iceland.Co.Uk","Supplies and Services related expenditure","10/09/2020","59.10","Director of Adult Services"
"Type of Retail Store","Grocery Stores/Supermarkets","Www.Iceland.Co.Uk","Supplies and Services related expenditure","10/09/2020","60.50","Director of Adult Services"
"Business To Business Facility/","Industrial Supplies - Def","Slingco Ltd","Premises related expenditure","10/09/2020","91.20","Director of Portsmouth International Port"
"Facilities/Repair Supplies","Lumber/Build. Supply Stores","Buildbase - Portsmouth","Premises related expenditure","10/09/2020","336.71","Director of Portsmouth International Port"
"Transportation Conveyor","Local Commuter Transport","Www.Hovertravel.Com","Supplies and Services related expenditure","10/09/2020","24.60","Director of Children's Services and Education"
"Other Supplies","Misc Speciality Retail","Amznmktplace","Supplies and Services related expenditure","10/09/2020","11.46","Director of Housing, Neighbourhood and Building Services"
"Other Supplies","Misc Speciality Retail","Amznmktplace Amazon.Co.Uk","Premises related expenditure","10/09/2020","3.73","Director of Children's Services and Education"
"Other Supplies","Misc Speciality Retail","Amznmktplace Amazon.Co.Uk","Supplies and Services related expenditure","10/09/2020","18.28","Director of Children's Services and Education"
"Business To Business Facility/","Industrial Supplies - Def","Arco Limited (Ahpp)","Supplies and Services related expenditure","10/09/2020","398.70","Director of Portsmouth International Port"
"Other Supplies","Misc Speciality Retail","Amznmktplace","Supplies and Services related expenditure","10/09/2020","282.48","Director of Children's Services and Education"
"Government Service","Govt Serv - Default","Gen Register Office","Supplies and Services related expenditure","10/09/2020","14.00","Director of Children's Services and Education"
"Miscellaneous","Civic/Social/Fraternal Assc","Government Events","Supplies and Services related expenditure","10/09/2020","346.79","Director of Children's Services and Education"
"Other Supplies","Discount Stores","Argos Ltd","Supplies and Services related expenditure","10/09/2020","422.46","Director of Children's Services and Education"
"Other Supplies","Misc Speciality Retail","Amznbusiness","Supplies and Services related expenditure","10/09/2020","26.23","Director of Children's Services and Education"
"Other Supplies","Wholesale Clubs","Blueleaf Limited","Supplies and Services related expenditure","10/09/2020","4.40","Director of Adult Services"
"Other Supplies","Misc Gen Merchandise - Def","Replacement Keys Ltd","Capital related expenditure","10/09/2020","49.50","Capital - Housing RA"
"Business To Business Eqpt/Furn","Durable Goods - Default","Xl Displays Ltd","Supplies and Services related expenditure","10/09/2020","155.00","Director of Culture, Leisure & Regulatory Services"
"Hotels And Motels","Hotel Ibis","Hotel Ibis","Supplies and Services related expenditure","10/09/2020","451.00","Director of Children's Services and Education"
"Miscellaneous","Continuity/Subscription Mercht","Amazon Prime","Supplies and Services related expenditure","10/09/2020","7.99","Director of Housing, Neighbourhood and Building Services"
"Type of Retail Store","Grocery Stores/Supermarkets","Asda Stores","Supplies and Services related expenditure","10/09/2020","59.34","Director of Housing, Neighbourhood and Building Services"
"Type of Retail Store","Grocery Stores/Supermarkets","Tesco Stores 4579","Supplies and Services related expenditure","10/09/2020","108.80","Director of Housing, Neighbourhood and Building Services"
"Other Supplies","Misc Speciality Retail","Amznmktplace","Supplies and Services related expenditure","10/09/2020","72.49","Director of Adult Services"
"Type of Retail Store","Grocery Stores/Supermarkets","Sainsburys S/mkts","Supplies and Services related expenditure","10/09/2020","11.80","Director of Children's Services and Education"
"Other Supplies","Misc Speciality Retail","Amznmktplace","Premises related expenditure","10/09/2020","15.83","Director of Children's Services and Education"
"Government Service","Colleges/Univ/Jc/Profession","Www.Glyndwr.Ac.Uk.","Employees related expenditure","10/09/2020","500.00","Director of Children's Services and Education"
"Government Service","Govt Serv - Default","Portsmouth City Co","Supplies and Services related expenditure","10/09/2020","12.00","Director of Children's Services and Education"
"Government Service","Govt Serv - Default","Portsmouth City Co","Transport related expenditure","10/09/2020","38.00","Director of Children's Services and Education"
"Clothing Services","Family Clothing Stores","Primark","Supplies and Services related expenditure","10/09/2020","8.75","Director of Children's Services and Education"
"Type of Retail Store","Drug Stores & Pharmacies","Boots 1524","Supplies and Services related expenditure","10/09/2020","9.92","Director of Children's Services and Education"
"Type of Retail Store","Grocery Stores/Supermarkets","Wm Morrisons Store","Supplies and Services related expenditure","10/09/2020","25.25","Director of Children's Services and Education"
"Business To Business Eqpt/Furn","Stationery/Office Supplies","Www.Banneruk.Com","Supplies and Services related expenditure","10/09/2020","101.40","Director of Corporate Services"
"Eating And Drinking Places","Fast Food Restaurants","Leon 14942101","Supplies and Services related expenditure","10/09/2020","3.54","Director of Children's Services and Education"
"Eating And Drinking Places","Fast Food Restaurants","Leon 14942101","Supplies and Services related expenditure","10/09/2020","-3.54","Director of Children's Services and Education"
"Eating And Drinking Places","Fast Food Restaurants","Leon 14942101","Supplies and Services related expenditure","10/09/2020","3.54","Director of Children's Services and Education"
"Business To Business Eqpt/Furn","Stationery/Office Supplies","Www.Banneruk.Com","Supplies and Services related expenditure","10/09/2020","107.21","Director of Housing, Neighbourhood and Building Services"
"Other Supplies","Misc Speciality Retail","Amznmktplace","Supplies and Services related expenditure","10/09/2020","57.46","Director of Children's Services and Education"
"Business To Business Eqpt/Furn","Computers/Peripherals/Software","Realvnc Limited","Supplies and Services related expenditure","10/09/2020","128.33","Director of Children's Services and Education"
"Type of Retail Store","Sporting Goods Stores","Millets","Supplies and Services related expenditure","10/09/2020","8.33","Director of Housing, Neighbourhood and Building Services"
"Business To Business Facility/","Hardware Equipment/Supplies","Croma Locksmiths & Sec","Supplies and Services related expenditure","10/09/2020","43.48","Director of Housing, Neighbourhood and Building Services"
"Miscellaneous","Agricultural Co-Operativ","Www.Nomixenviro.Co.Uk","Supplies and Services related expenditure","10/09/2020","67.50","Director of Housing, Neighbourhood and Building Services"
"Business To Business Facility/","Industrial Supplies - Def","Arco Limited (Ahpp)","Supplies and Services related expenditure","10/09/2020","15.08","Director of Housing, Neighbourhood and Building Services"
"Business To Business Facility/","Hardware Equipment/Supplies","Www.Lockshopdirect.Co.","Premises related expenditure","10/09/2020","44.25","Director of Children's Services and Education"
"Other Supplies","Misc Speciality Retail","Amznmktplace","Supplies and Services related expenditure","10/09/2020","10.40","Director of Adult Services"
"Other Supplies","Misc Gen Merchandise - Def","Lovesweetstyle","Supplies and Services related expenditure","10/09/2020","55.99","Director of Adult Services"
"Facilities/Repair Supplies","Lawn/Garden Supply/Nursery","Carters Of Swanwic","Supplies and Services related expenditure","10/09/2020","84.75","Director of Housing, Neighbourhood and Building Services"
"Medical","Lab/Med/Hospital Equipment","Wightman & Parrish","Premises related expenditure","10/09/2020","45.49","Director of Housing, Neighbourhood and Building Services"
"Business To Business Eqpt/Furn","Stationery/Office Supplies","Www.Banneruk.Com","Supplies and Services related expenditure","10/09/2020","15.78","Director of Children's Services and Education"
"Other Supplies","Misc Speciality Retail","Amznmktplace","Supplies and Services related expenditure","10/09/2020","24.99","Director of Children's Services and Education"
"Business To Business Eqpt/Furn","Stationery/Office Supplies","Www.Banneruk.Com","Supplies and Services related expenditure","10/09/2020","71.52","Director of Housing, Neighbourhood and Building Services"
"Business To Business Eqpt/Furn","Stationery/Office Supplies","Www.Banneruk.Com","Supplies and Services related expenditure","10/09/2020","91.52","Director of Housing, Neighbourhood and Building Services"
"Miscellaneous","Other Direct Marketers","Amazon.Co.Uk","Supplies and Services related expenditure","10/09/2020","8.32","Director of Children's Services and Education"
"Other Supplies","Misc Speciality Retail","Amz*celelin","Supplies and Services related expenditure","10/09/2020","-43.17","Director of Children's Services and Education"
"Miscellaneous","Other Direct Marketers","Amazon.Co.Uk","Supplies and Services related expenditure","10/09/2020","39.98","Director of Children's Services and Education"
"Other Supplies","Misc Speciality Retail","Www.Thelightingsup","Premises related expenditure","10/09/2020","77.59","Director of Children's Services and Education"
"Facilities/Repair Supplies","Home Supply Warehouse Stores","B & Q 1260","Premises related expenditure","10/09/2020","53.69","Director of Adult Services"
"Type of Retail Store","Grocery Stores/Supermarkets","Tesco Stores 4579","Supplies and Services related expenditure","10/09/2020","17.38","Director of Children's Services and Education"
"Type of Retail Store","Grocery Stores/Supermarkets","Lidl Gb Portsmouth","Supplies and Services related expenditure","10/09/2020","0.95","Director of Children's Services and Education"
"Type of Retail Store","Grocery Stores/Supermarkets","Lidl Gb Portsmouth","Supplies and Services related expenditure","10/09/2020","16.24","Director of Children's Services and Education"
"Business To Business Facility/","Industrial Supplies - Def","Arco Limited (Sap)","Supplies and Services related expenditure","10/09/2020","181.23","Director of Housing, Neighbourhood and Building Services"
"Type of Retail Store","Grocery Stores/Supermarkets","Tesco Stores 6577","Supplies and Services related expenditure","10/09/2020","5.35","Director of Adult Services"
"Other Supplies","Misc Speciality Retail","Amznmktplace","Supplies and Services related expenditure","10/09/2020","7.68","Director of Children's Services and Education"
"Business To Business Eqpt/Furn","Computer Software Stores","First Group Ent.","Supplies and Services related expenditure","10/09/2020","79.99","Director of Children's Services and Education"
"Facilities/Repair Supplies","Lumber/Build. Supply Stores","Screwfix Direct","Premises related expenditure","10/09/2020","85.68","Director of Children's Services and Education"
"Business To Business Eqpt/Furn","Durable Goods - Default","Vidaxl Uk","Premises related expenditure","10/09/2020","188.97","Director of Children's Services and Education"
"Other Supplies","Misc Speciality Retail","Amznmktplace Amazon.Co.Uk","Premises related expenditure","10/09/2020","166.65","Director of Children's Services and Education"
"Other Supplies","Misc Gen Merchandise - Def","Wilko Retail Limited","Supplies and Services related expenditure","10/09/2020","7.50","Director of Culture, Leisure & Regulatory Services"
"Business To Business Facility/","Industrial Supplies - Def","Arco Limited (Sap)","Supplies and Services related expenditure","10/09/2020","60.65","Director of Housing, Neighbourhood and Building Services"
"Medical","Lab/Med/Hospital Equipment","Wightman & Parrish Ltd","Premises related expenditure","10/09/2020","493.37","Director of Housing, Neighbourhood and Building Services"
"Facilities/Repair Supplies","Lumber/Build. Supply Stores","Screwfix Direct","Supplies and Services related expenditure","10/09/2020","7.49","Director of Culture, Leisure & Regulatory Services"
"Eating And Drinking Places","Fast Food Restaurants","McDonalds","Agency and Third Party Payments related expenditure","10/09/2020","5.12","Director of Children's Services and Education"
"Eating And Drinking Places","Fast Food Restaurants","McDonalds","Agency and Third Party Payments related expenditure","10/09/2020","1.19","Director of Children's Services and Education"
"Eating And Drinking Places","Fast Food Restaurants","McDonalds","Agency and Third Party Payments related expenditure","10/09/2020","2.02","Director of Children's Services and Education"
"Eating And Drinking Places","Fast Food Restaurants","McDonalds","Agency and Third Party Payments related expenditure","10/09/2020","5.41","Director of Children's Services and Education"
"Eating And Drinking Places","Eating Places/Restaurants","Deliveroo.Co.Uk","Agency and Third Party Payments related expenditure","10/09/2020","31.37","Director of Children's Services and Education"
"Type of Retail Store","Grocery Stores/Supermarkets","Sainsburys S/mkt","Supplies and Services related expenditure","10/09/2020","54.83","Director of Children's Services and Education"
"Type of Retail Store","Grocery Stores/Supermarkets","Sainsburys S/mkt","Supplies and Services related expenditure","10/09/2020","12.38","Director of Children's Services and Education"
"Type of Retail Store","Grocery Stores/Supermarkets","Sainsburys S/mkt","Supplies and Services related expenditure","10/09/2020","5.83","Director of Children's Services and Education"
"Type of Retail Store","Grocery Stores/Supermarkets","Sainsburys S/mkt","Supplies and Services related expenditure","10/09/2020","1.25","Director of Children's Services and Education"
"Business To Business Eqpt/Furn","Stationery/Office Supplies","Www.Banneruk.Com","Supplies and Services related expenditure","10/09/2020","8.46","Director of Housing, Neighbourhood and Building Services"
"Business To Business Eqpt/Furn","Stationery/Office Supplies","Www.Banneruk.Com","Supplies and Services related expenditure","10/09/2020","66.64","Director of Housing, Neighbourhood and Building Services"
"Clothing Services","Misc Apparel/Access Shops","Etsy.Com Hxmestore","Supplies and Services related expenditure","10/09/2020","7.49","Director of Children's Services and Education"
"Type of Retail Store","Artist/Craft Shops","Baker Ross","Supplies and Services related expenditure","10/09/2020","33.00","Director of Children's Services and Education"
"Miscellaneous","Elementary/Secondary School","Paypal","Supplies and Services related expenditure","10/09/2020","50.00","Director of Children's Services and Education"
"Facilities/Repair Supplies","Drapery & Upholstery Stores","Waverley Contract & Supp","Premises related expenditure","10/09/2020","53.50","Director of Children's Services and Education"
"Other Supplies","Catalog Merchant","Www.Uk.Insight.Com","Supplies and Services related expenditure","10/09/2020","-34.40","Director of Corporate Services"
"Other Supplies","Catalog Merchant","Www.Uk.Insight.Com","Supplies and Services related expenditure","10/09/2020","-34.40","Director of Housing, Neighbourhood and Building Services"
"Government Service","Govt Serv - Default","Portsmouth City Co","Transport related expenditure","10/09/2020","63.33","Director of Adult Services"
"Medical","Lab/Med/Hospital Equipment","Complete Care Shop","Supplies and Services related expenditure","10/09/2020","46.53","Director of Adult Services"
"Business Services","Business Services - Default","Www.Phs.Co.Uk","Premises related expenditure","10/09/2020","-1,090.82","Director of Adult Services"
"Business Expenses/Services","Stationery Stores","Staples.Co.Uk","Supplies and Services related expenditure","10/10/2020","32.96","Director of Housing, Neighbourhood and Building Services"
"Other Supplies","Misc Speciality Retail","Amz*tromba Pro","Supplies and Services related expenditure","10/10/2020","-10.00","Director of Housing, Neighbourhood and Building Services"
"Facilities/Repair Supplies","Lawn/Garden Supply/Nursery","Keydell Nurseries","Supplies and Services related expenditure","10/10/2020","14.98","Director of Housing, Neighbourhood and Building Services"
"Other Supplies","Department Stores","The Range","Supplies and Services related expenditure","10/10/2020","6.28","Director of Children's Services and Education"
"Other Supplies","Misc Speciality Retail","Amznmktplace","Supplies and Services related expenditure","10/10/2020","15.98","Director of Children's Services and Education"
"Miscellaneous","Continuity/Subscription Mercht","Amazon Prime","Supplies and Services related expenditure","10/10/2020","65.83","Director of Children's Services and Education"
"Type of Retail Store","Sporting Goods Stores","Www.Gooutdoors.Co.Uk","Supplies and Services related expenditure","10/10/2020","79.17","Director of Regeneration"
"Business Services","Advertising Services","Google Ads5247259773","Supplies and Services related expenditure","10/10/2020","500.00","Director of Children's Services and Education"
"Facilities/Repair Supplies","Lumber/Build. Supply Stores","Buildbase - Portsmouth","Supplies and Services related expenditure","10/10/2020","19.72","Director of Adult Services"
"Business Services","Advertising Services","Facebk P7uhvwnyt2","Supplies and Services related expenditure","10/10/2020","62.40","Director of Culture, Leisure & Regulatory Services"
"Other Supplies","Misc Gen Merchandise - Def","Sumup *mobile Stall","Supplies and Services related expenditure","10/10/2020","7.99","Director of Housing, Neighbourhood and Building Services"
"Other Supplies","Misc Speciality Retail","Amznmktplace","Supplies and Services related expenditure","10/10/2020","39.13","Director of Adult Services"
"Business Expenses/Services","Stationery Stores","Staples.Co.Uk","Supplies and Services related expenditure","10/10/2020","61.10","Director of Adult Services"
"Type of Retail Store","Grocery Stores/Supermarkets","Wm Morrisons Store","Supplies and Services related expenditure","10/10/2020","80.68","Director of Housing, Neighbourhood and Building Services"
"Other Supplies","Misc Speciality Retail","Amznmktplace","Supplies and Services related expenditure","10/10/2020","194.04","Director of Children's Services and Education"
"Other Supplies","Misc Speciality Retail","Amznmktplace","Supplies and Services related expenditure","10/10/2020","66.68","Director of Children's Services and Education"
"Other Supplies","Misc Speciality Retail","Amznmktplace","Supplies and Services related expenditure","10/10/2020","10.83","Director of Children's Services and Education"
"Type of Retail Store","Grocery Stores/Supermarkets","Tesco Stores 6002","Supplies and Services related expenditure","10/10/2020","3.33","Director of Adult Services"
"Other Supplies","Misc Speciality Retail","Amznmktplace","Supplies and Services related expenditure","10/10/2020","3.49","Director of Children's Services and Education"
"Other Supplies","Misc Speciality Retail","Amznmktplace Amazon.Co.Uk","Supplies and Services related expenditure","10/10/2020","49.92","Director of Children's Services and Education"
"Type of Retail Store","Grocery Stores/Supermarkets","Tesco Stores 4579","Supplies and Services related expenditure","10/10/2020","4.98","Director of Children's Services and Education"
"Type of Retail Store","Grocery Stores/Supermarkets","Tesco Stores 4579","Supplies and Services related expenditure","10/10/2020","52.57","Director of Children's Services and Education"
"Amusement/Entertainment","Tourist Attractions And Xhbt","Drusillas Zoo","Agency and Third Party Payments related expenditure","10/10/2020","3.67","Director of Children's Services and Education"
"Transportation Conveyor","Local Commuter Transport","Www.Gosportferry.Co.Uk","Transport related expenditure","10/10/2020","5.25","Director of Children's Services and Education"
"Amusement/Entertainment","Tourist Attractions And Xhbt","Drusillas Zoo","Agency and Third Party Payments related expenditure","10/10/2020","8.00","Director of Children's Services and Education"
"Amusement/Entertainment","Tourist Attractions And Xhbt","Drusillas Zoo","Agency and Third Party Payments related expenditure","10/10/2020","17.90","Director of Children's Services and Education"
"Other Supplies","Misc Speciality Retail","Amznmktplace","Supplies and Services related expenditure","10/11/2020","19.98","Director of Children's Services and Education"
"Other Supplies","Misc Speciality Retail","Amznmktplace","Supplies and Services related expenditure","10/11/2020","129.98","Director of Children's Services and Education"
"Type of Retail Store","Grocery Stores/Supermarkets","Wm Morrisons Store","Supplies and Services related expenditure","10/11/2020","33.75","Director of Children's Services and Education"
"Type of Retail Store","Grocery Stores/Supermarkets","Asda Stores","Supplies and Services related expenditure","10/11/2020","11.46","Director of Children's Services and Education"
"Type of Retail Store","Grocery Stores/Supermarkets","Asda Stores","Supplies and Services related expenditure","10/11/2020","20.82","Director of Children's Services and Education"
"Other Supplies","Misc Speciality Retail","Amznmktplace","Supplies and Services related expenditure","10/11/2020","36.41","Director of Adult Services"
"Other Supplies","Misc Speciality Retail","Amznmktplace","Supplies and Services related expenditure","10/11/2020","39.58","Director of Adult Services"
"Other Supplies","Misc Speciality Retail","Amznmktplace","Supplies and Services related expenditure","10/11/2020","24.97","Director of Children's Services and Education"
"Other Supplies","Misc Speciality Retail","Amznmktplace","Supplies and Services related expenditure","10/11/2020","20.81","Director of Children's Services and Education"
"Other Supplies","Misc Speciality Retail","Amznmktplace","Supplies and Services related expenditure","10/11/2020","28.32","Director of Children's Services and Education"
"Other Supplies","Misc Speciality Retail","Amznmktplace","Supplies and Services related expenditure","10/11/2020","157.38","Director of Children's Services and Education"
"Other Supplies","Misc Speciality Retail","Amznmktplace","Supplies and Services related expenditure","10/11/2020","10.36","Director of Children's Services and Education"
"Other Supplies","Misc Speciality Retail","Amznbusiness","Supplies and Services related expenditure","10/11/2020","24.02","Director of Children's Services and Education"
"Other Supplies","Misc Speciality Retail","Amznbusiness","Supplies and Services related expenditure","10/11/2020","63.12","Director of Children's Services and Education"
"Miscellaneous","Other Direct Marketers","Amazon.Co.Uk","Supplies and Services related expenditure","10/11/2020","117.01","Director of Children's Services and Education"
"Other Supplies","Misc Speciality Retail","Amznmktplace","Supplies and Services related expenditure","10/11/2020","24.99","Director of Adult Services"
"Other Supplies","Misc Speciality Retail","Amznmktplace","Supplies and Services related expenditure","10/11/2020","12.49","Director of Children's Services and Education"
"Other Supplies","Misc Speciality Retail","Amznmktplace Amazon.Co.Uk","Supplies and Services related expenditure","10/11/2020","10.19","Director of Children's Services and Education"
"Other Supplies","Misc Speciality Retail","Amznmktplace Amazon.Co.Uk","Supplies and Services related expenditure","10/11/2020","40.81","Director of Children's Services and Education"
"Type of Retail Store","Grocery Stores/Supermarkets","Lidl Gb","Supplies and Services related expenditure","10/11/2020","6.24","Director of Children's Services and Education"
"Other Supplies","Misc Speciality Retail","Amznmktplace","Supplies and Services related expenditure","10/11/2020","45.21","Director of Housing, Neighbourhood and Building Services"
"Amusement/Entertainment","Amusement/Rec Serv - Def","Splashdown Waterpark","Agency and Third Party Payments related expenditure","10/11/2020","-5.00","Director of Children's Services and Education"
"Amusement/Entertainment","Member Clubs/Sport/Rec/Golf","Lemur Attractions","Agency and Third Party Payments related expenditure","10/11/2020","39.00","Director of Children's Services and Education"
"Other Supplies","Misc Speciality Retail","Amznmktplace","Supplies and Services related expenditure","10/11/2020","19.12","Director of Children's Services and Education"
"Other Supplies","Misc Speciality Retail","Amznmktplace","Supplies and Services related expenditure","10/11/2020","23.73","Director of Children's Services and Education"
"Business To Business Facility/","Industrial Supplies - Def","Arco Limited (Ahpp)","Supplies and Services related expenditure","10/05/2020","21.45","Director of Housing, Neighbourhood and Building Services"
"Facilities/Repair Supplies","Lumber/Build. Supply Stores","Jewson Ltd","Supplies and Services related expenditure","10/09/2020","4.74","Director of Culture, Leisure & Regulatory Services"
"Business To Business Eqpt/Furn","Computer Software Stores","Sp * Choice Wholesale","Supplies and Services related expenditure","10/09/2020","-168.30","Director of Children's Services and Education"
"Miscellaneous","Continuity/Subscription Mercht","Amazon Prime","Supplies and Services related expenditure","10/11/2020","7.99","Director of Children's Services and Education"
"Other Supplies","Misc Speciality Retail","Amznmktplace Amazon.Co.Uk","Supplies and Services related expenditure","10/11/2020","18.30","Director of Children's Services and Education"
"Other Supplies","Misc Speciality Retail","Amznbusiness","Premises related expenditure","10/11/2020","33.73","Director of Children's Services and Education"
"Other Supplies","Misc Speciality Retail","Paypal","Supplies and Services related expenditure","10/11/2020","-41.00","Director of Children's Services and Education"
"Other Supplies","Misc Speciality Retail","Paypal","Supplies and Services related expenditure","10/11/2020","41.00","Director of Children's Services and Education"
"Other Supplies","Misc Speciality Retail","Amznbusiness","Supplies and Services related expenditure","10/11/2020","11.98","Director of Children's Services and Education"
"Business To Business Eqpt/Furn","Stationery/Office Supplies","Www.Banneruk.Com","Supplies and Services related expenditure","10/12/2020","5.76","Director of Housing, Neighbourhood and Building Services"
"Business To Business Eqpt/Furn","Stationery/Office Supplies","Www.Banneruk.Com","Supplies and Services related expenditure","10/12/2020","50.60","Director of Housing, Neighbourhood and Building Services"
"Utility","Phone Serv/Equip Utility","Www.Broadbandbuyer.Co.Uk","Supplies and Services related expenditure","10/12/2020","185.29","Director of Housing, Neighbourhood and Building Services"
"Medical","Lab/Med/Hospital Equipment","Wightman & Parrish","Premises related expenditure","10/12/2020","28.80","Director of Housing, Neighbourhood and Building Services"
"Business To Business Eqpt/Furn","Stationery/Office Supplies","Www.Banneruk.Com","Supplies and Services related expenditure","10/12/2020","24.51","Director of Corporate Services"
"Business To Business Eqpt/Furn","Stationery/Office Supplies","Www.Banneruk.Com","Supplies and Services related expenditure","10/12/2020","33.48","Director of Corporate Services"
"Freight/Courier/Warehouse Svcs","Public Warehousing","Lok N Store","Premises related expenditure","10/12/2020","60.00","Director of Housing, Neighbourhood and Building Services"
"Transportation Conveyor","Local Commuter Transport","Hovertravel Ltd","Agency and Third Party Payments related expenditure","10/12/2020","412.00","Director of Children's Services and Education"
"Business To Business Facility/","Industrial Supplies - Def","Arco Limited (Ahpp)","Supplies and Services related expenditure","10/12/2020","54.58","Director of Housing, Neighbourhood and Building Services"
"Medical","Lab/Med/Hospital Equipment","Wightman & Parrish Ltd","Premises related expenditure","10/12/2020","61.89","Director of Housing, Neighbourhood and Building Services"
"Other Supplies","Misc Speciality Retail","Amazon.Co.Uk","Supplies and Services related expenditure","10/12/2020","148.33","Director of Children's Services and Education"
"Facilities/Repair Supplies","Hardware Stores","Www.Toolstation.Com","Capital related expenditure","10/12/2020","99.98","Director of Children's Services and Education"
"Business To Business Eqpt/Furn","Stationery/Office Supplies","Www.Banneruk.Com","Supplies and Services related expenditure","10/12/2020","9.54","Director of Children's Services and Education"
"Business To Business Eqpt/Furn","Stationery/Office Supplies","Www.Banneruk.Com","Supplies and Services related expenditure","10/12/2020","102.73","Director of Children's Services and Education"
"Facilities/Repair Supplies","Home Supply Warehouse Stores","B & Q 1260","Supplies and Services related expenditure","10/12/2020","2.50","Director of Children's Services and Education"
"Hotels And Motels","Travelodge","Travelodge Gb0000","Agency and Third Party Payments related expenditure","10/12/2020","147.00","Director of Housing, Neighbourhood and Building Services"
"Hotels And Motels","Travelodge","Travelodge Gb0000","Agency and Third Party Payments related expenditure","10/12/2020","788.30","Director of Housing, Neighbourhood and Building Services"
"Other Supplies","Discount Stores","Argos Ltd","Supplies and Services related expenditure","10/12/2020","482.95","Director of Adult Services"
"Medical","Lab/Med/Hospital Equipment","Wightman & Parrish","Premises related expenditure","10/12/2020","88.84","Director of Housing, Neighbourhood and Building Services"
"Business To Business Facility/","Industrial Supplies - Def","Arco Limited (Ahpp)","Supplies and Services related expenditure","10/12/2020","21.30","Director of Regeneration"
"Other Supplies","Misc Speciality Retail","Amznmktplace","Agency and Third Party Payments related expenditure","10/12/2020","156.66","Director of Children's Services and Education"
"Type of Retail Store","Grocery Stores/Supermarkets","Liquidline Vt","Supplies and Services related expenditure","10/12/2020","181.88","Director of Portsmouth International Port"
"Other Supplies","Misc Speciality Retail","Value Products Ltd","Supplies and Services related expenditure","10/12/2020","104.50","Director of Housing, Neighbourhood and Building Services"
"Transportation Conveyor","Passenger Railways","Swrailway Tck Off","Transport related expenditure","10/12/2020","118.00","Director of Children's Services and Education"
"Transportation Conveyor","Passenger Railways","Swrailway Tck Off","Transport related expenditure","10/12/2020","118.00","Director of Children's Services and Education"
"Business To Business Eqpt/Furn","Stationery/Office Supplies","Www.Banneruk.Com","Supplies and Services related expenditure","10/12/2020","3.50","Director of Culture, Leisure & Regulatory Services"
"Personal Service Provider","Computer Program/Sys Design","Squarespace Inc.","Supplies and Services related expenditure","10/12/2020","15.84","Director of Children's Services and Education"
"Other Supplies","Misc Gen Merchandise - Def","Stevenage Packaging","Supplies and Services related expenditure","10/12/2020","183.95","Director of Children's Services and Education"
"Other Supplies","Misc Speciality Retail","Amznmktplace","Supplies and Services related expenditure","10/12/2020","41.98","Director of Children's Services and Education"
"Business To Business Eqpt/Furn","Stationery/Office Supplies","Www.Banneruk.Com","Supplies and Services related expenditure","10/12/2020","67.00","Director of Regeneration"
"Business To Business Eqpt/Furn","Stationery/Office Supplies","Www.Banneruk.Com","Supplies and Services related expenditure","10/12/2020","71.65","Director of Regeneration"
"Government Service","Colleges/Univ/Jc/Profession","Proconferences.Com","Employees related expenditure","10/12/2020","109.00","Director of Regeneration"
"Other Supplies","Discount Stores","Argos Ltd","Supplies and Services related expenditure","10/12/2020","66.66","Director of Children's Services and Education"
"Type of Retail Store","Grocery Stores/Supermarkets","Www.Iceland.Co.Uk","Supplies and Services related expenditure","10/12/2020","93.05","Director of Adult Services"
"Business To Business Eqpt/Furn","Stationery/Office Supplies","Www.Banneruk.Com","Supplies and Services related expenditure","10/12/2020","8.99","Director of Regeneration"
"Miscellaneous","Continuity/Subscription Mercht","Zoom.Gbp","Supplies and Services related expenditure","10/12/2020","11.99","Director of Regeneration"
"Other Supplies","Misc Speciality Retail","Timpson Ltd","Supplies and Services related expenditure","10/12/2020","8.75","Director of Regeneration"
"Government Service","Govt Serv - Default","Pcc Internet Payment","Agency and Third Party Payments related expenditure","10/12/2020","11.00","Director of Culture, Leisure & Regulatory Services"
"Facilities/Repair Services","Spec Contractors - Default","Trophystore.Co.Uk Limited","Supplies and Services related expenditure","10/12/2020","23.33","Director of Children's Services and Education"
"Type of Retail Store","Grocery Stores/Supermarkets","Tesco Store 3055","Supplies and Services related expenditure","10/12/2020","14.45","Director of Children's Services and Education"
"Type of Retail Store","Grocery Stores/Supermarkets","Tesco Store 3055","Supplies and Services related expenditure","10/12/2020","2.67","Director of Children's Services and Education"
"Type of Retail Store","Grocery Stores/Supermarkets","Tesco Store 3055","Supplies and Services related expenditure","10/12/2020","30.95","Director of Children's Services and Education"
"Business Expenses/Services","Stationery Stores","Www.Primaryteaching.Co","Supplies and Services related expenditure","10/12/2020","118.75","Director of Children's Services and Education"
"Type of Retail Store","Grocery Stores/Supermarkets","Tesco Store 3048","Supplies and Services related expenditure","10/12/2020","30.00","Director of Children's Services and Education"
"Type of Retail Store","Grocery Stores/Supermarkets","Tesco Store 3048","Supplies and Services related expenditure","10/12/2020","40.00","Director of Children's Services and Education"
"Government Service","Govt Serv - Default","Pcc Internet Payment","Supplies and Services related expenditure","10/12/2020","44.00","Director of Children's Services and Education"
"Transportation Conveyor","Bus Lines/Charter/Tour","The Provincial Bus","Supplies and Services related expenditure","10/12/2020","66.00","Director of Children's Services and Education"
"Other Supplies","Misc Gen Merchandise - Def","Replacement Keys Ltd","Capital related expenditure","10/12/2020","13.21","Capital - Housing RA"
"Type of Retail Store","Grocery Stores/Supermarkets","Fruit Basket Ltd","Supplies and Services related expenditure","10/12/2020","68.13","Director of Culture, Leisure & Regulatory Services"
"Facilities/Repair Supplies","Hardware Stores","Www.Toolstation.Com","Premises related expenditure","10/12/2020","157.28","Director of Housing, Neighbourhood and Building Services"
"Facilities/Repair Supplies","Home Supply Warehouse Stores","B & Q 1260","Premises related expenditure","10/12/2020","19.44","Director of Housing, Neighbourhood and Building Services"
"Type of Retail Store","Grocery Stores/Supermarkets","Wm Morrisons Store","Supplies and Services related expenditure","10/12/2020","52.59","Director of Housing, Neighbourhood and Building Services"
"Type of Retail Store","Grocery Stores/Supermarkets","Asda Stores","Supplies and Services related expenditure","10/12/2020","85.54","Director of Housing, Neighbourhood and Building Services"
"Miscellaneous","Continuity/Subscription Mercht","Zoom.Gbp","Supplies and Services related expenditure","10/12/2020","77.14","Director of Children's Services and Education"
"Transportation Conveyor","Parking Lots, Meters, Garages","3c_*portsmouth City Coun","Agency and Third Party Payments related expenditure","10/12/2020","7.08","Director of Children's Services and Education"
"Transportation Conveyor","Local Commuter Transport","Hovertravel Ltd","Transport related expenditure","10/12/2020","24.60","Director of Children's Services and Education"
"Business To Business Other Sup","Precious Stones/Metals/Jewelry","Running Imp International","Supplies and Services related expenditure","10/12/2020","45.89","Director of Children's Services and Education"
"Other Supplies","Misc Speciality Retail","Amznmktplace","Premises related expenditure","10/12/2020","28.25","Director of Children's Services and Education"
"Other Supplies","Misc Speciality Retail","Amznmktplace","Premises related expenditure","10/12/2020","67.42","Director of Children's Services and Education"
"Other Supplies","Misc Speciality Retail","Amz*good Life Ltd","Premises related expenditure","10/12/2020","-124.99","Director of Children's Services and Education"
"Facilities/Repair Supplies","Hardware Stores","Www.Toolstation.Com","Premises related expenditure","10/12/2020","27.67","Director of Children's Services and Education"
"Type of Retail Store","Grocery Stores/Supermarkets","Tesco Stores 4579","Supplies and Services related expenditure","10/12/2020","4.56","Director of Children's Services and Education"
"Type of Retail Store","Grocery Stores/Supermarkets","Tesco Stores 4579","Supplies and Services related expenditure","10/12/2020","3.57","Director of Children's Services and Education"
"Type of Retail Store","Grocery Stores/Supermarkets","Tesco Stores 4579","Premises related expenditure","10/12/2020","2.50","Director of Children's Services and Education"
"Type of Retail Store","Grocery Stores/Supermarkets","Tesco Stores 4579","Supplies and Services related expenditure","10/12/2020","10.00","Director of Children's Services and Education"
"Type of Retail Store","Grocery Stores/Supermarkets","Tesco Stores 4579","Supplies and Services related expenditure","10/12/2020","79.70","Director of Children's Services and Education"
"Other Supplies","Department Stores","The Range","Premises related expenditure","10/12/2020","157.34","Director of Children's Services and Education"
"Eating And Drinking Places","Eating Places/Restaurants","Greggs Plc","Supplies and Services related expenditure","10/12/2020","20.00","Director of Children's Services and Education"
"Business To Business Eqpt/Furn","Computer Software Stores","Textmagic.Com","Supplies and Services related expenditure","10/12/2020","20.00","Director of Corporate Services"
"Business To Business Eqpt/Furn","Stationery/Office Supplies","Www.Banneruk.Com","Supplies and Services related expenditure","10/12/2020","17.28","Director of Adult Services"
"Type of Retail Store","Grocery Stores/Supermarkets","Wm Morrisons Store Pick","Supplies and Services related expenditure","10/12/2020","73.52","Director of Children's Services and Education"
"Business To Business Services","Misc Publishing & Printing","Buffer Publish Pro Mo","Supplies and Services related expenditure","10/12/2020","11.88","Chief Exec"
"Government Service","Schools - Default","National Ed Group Ltd","Employees related expenditure","10/12/2020","50.00","Director of Children's Services and Education"
"Utility","Phone Serv/Equip Utility","Vodafone Ltd","Supplies and Services related expenditure","10/12/2020","133.43","Director of Children's Services and Education"
"Facilities/Repair Supplies","Home Supply Warehouse Stores","B&q Direct","Supplies and Services related expenditure","10/12/2020","41.67","Director of Housing, Neighbourhood and Building Services"
"Utility","Phone Serv/Equip Utility","Ee Top Up Vesta","Supplies and Services related expenditure","10/12/2020","10.00","Director of Children's Services and Education"
"Facilities/Repair Supplies","Lumber/Build. Supply Stores","Screwfix Portsmouth","Premises related expenditure","10/12/2020","24.88","Director of Culture, Leisure & Regulatory Services"
"Other Supplies","Misc Speciality Retail","Amznbusiness","Supplies and Services related expenditure","10/12/2020","25.98","Director of Culture, Leisure & Regulatory Services"
"Other Supplies","Misc Speciality Retail","Amznmktplace","Supplies and Services related expenditure","10/12/2020","43.32","Director of Adult Services"
"Auto/Vehicle Expenses","Auto Body Repair Shops","Swinburne","Transport related expenditure","10/12/2020","119.99","Director of Children's Services and Education"
"Auto/Vehicle Expenses","Auto Body Repair Shops","Swinburne","Transport related expenditure","10/12/2020","46.99","Director of Children's Services and Education"
"Auto/Vehicle Expenses","Auto Body Repair Shops","Swinburne","Transport related expenditure","10/12/2020","59.55","Director of Children's Services and Education"
"Medical","Lab/Med/Hospital Equipment","Wightman & Parrish Ltd","Premises related expenditure","10/12/2020","61.87","Director of Housing, Neighbourhood and Building Services"
"Medical","Lab/Med/Hospital Equipment","Wightman & Parrish Ltd","Premises related expenditure","10/12/2020","361.70","Director of Housing, Neighbourhood and Building Services"
"Medical","Lab/Med/Hospital Equipment","Wightman & Parrish Ltd","Premises related expenditure","10/12/2020","165.83","Director of Housing, Neighbourhood and Building Services"
"Facilities/Repair Supplies","Lumber/Build. Supply Stores","C Brewer & Sons","Supplies and Services related expenditure","10/12/2020","32.06","Director of Culture, Leisure & Regulatory Services"
"Type of Retail Store","Grocery Stores/Supermarkets","Lidl Gb Portsmouth","Supplies and Services related expenditure","10/12/2020","7.12","Director of Adult Services"
"Other Supplies","Misc Speciality Retail","Amznmktplace","Supplies and Services related expenditure","10/12/2020","12.49","Director of Children's Services and Education"
"Facilities/Repair Supplies","Hardware Stores","Led Hut Retail","Supplies and Services related expenditure","10/12/2020","43.36","Director of Regeneration"
"Business Expenses/Services","Postage Stamps","Post Office Counter","Supplies and Services related expenditure","10/12/2020","31.20","Director of Housing, Neighbourhood and Building Services"
"Medical","Lab/Med/Hospital Equipment","Wightman & Parrish","Supplies and Services related expenditure","10/12/2020","12.78","Director of Adult Services"
"Facilities/Repair Supplies","Lumber/Build. Supply Stores","Screwfix Portsmouth","Premises related expenditure","10/12/2020","7.30","Director of Adult Services"
"Automobile Services & Supplies","Service Stations","Asda Petrol 4583","Transport related expenditure","10/12/2020","47.21","Director of Housing, Neighbourhood and Building Services"
"Clothing Services","Mens/Womens Clothing Stores","Footasylum Plc","Supplies and Services related expenditure","10/12/2020","78.74","Director of Children's Services and Education"
"Facilities/Repair Supplies","Home Supply Warehouse Stores","B & Q 1260","Premises related expenditure","10/12/2020","6.67","Director of Culture, Leisure & Regulatory Services"
"Facilities/Repair Supplies","Lumber/Build. Supply Stores","Wurth UK Limited","Premises related expenditure","10/12/2020","53.31","Director of Culture, Leisure & Regulatory Services"
"Personal Service Provider","Mgmt/Consult/Public Rel Ser","Www.Aldercross.Com","Employees related expenditure","10/12/2020","-275.00","Director of Regeneration"
"Type of Retail Store","Grocery Stores/Supermarkets","Asda Groceries Online","Supplies and Services related expenditure","10/12/2020","17.23","Director of Children's Services and Education"
"Type of Retail Store","Grocery Stores/Supermarkets","Asda Groceries Online","Supplies and Services related expenditure","10/12/2020","0.71","Director of Children's Services and Education"
"Type of Retail Store","Grocery Stores/Supermarkets","Asda Groceries Online","Supplies and Services related expenditure","10/12/2020","1.20","Director of Children's Services and Education"
"Type of Retail Store","Grocery Stores/Supermarkets","Asda Groceries Online","Supplies and Services related expenditure","10/12/2020","82.51","Director of Children's Services and Education"
"Amusement/Entertainment","Bands/Orchestras/Entertain","Bh Live-Accounts","Supplies and Services related expenditure","10/12/2020","158.95","Director of Adult Services"
"Type of Retail Store","Grocery Stores/Supermarkets","Tesco Store 3048","Supplies and Services related expenditure","10/12/2020","20.40","Director of Children's Services and Education"
"Facilities/Repair Supplies","Home Supply Warehouse Stores","B & Q 1260","Supplies and Services related expenditure","10/12/2020","4.17","Director of Children's Services and Education"
"Utility","Utilities/Elec/Gas/H2O/Sani","Castle Water","Premises related expenditure","10/12/2020","82.64","Director of Children's Services and Education"
"Type of Retail Store","Grocery Stores/Supermarkets","Wm Morrisons Store","Supplies and Services related expenditure","10/12/2020","2.30","Director of Children's Services and Education"
"Type of Retail Store","Grocery Stores/Supermarkets","Wm Morrisons Store","Supplies and Services related expenditure","10/12/2020","3.08","Director of Children's Services and Education"
"Other Supplies","Misc Gen Merchandise - Def","B&m 566 - Farlington","Premises related expenditure","10/12/2020","33.33","Director of Children's Services and Education"
"Amusement/Entertainment","Amusement/Rec Serv - Def","Www.Zsl.Org-Dom","Agency and Third Party Payments related expenditure","10/12/2020","81.81","Director of Children's Services and Education"
"Type of Retail Store","Grocery Stores/Supermarkets","Tesco Stores 4579","Supplies and Services related expenditure","10/12/2020","87.02","Director of Children's Services and Education"
"Type of Retail Store","Grocery Stores/Supermarkets","Tesco Stores 4579","Supplies and Services related expenditure","10/12/2020","10.23","Director of Children's Services and Education"
"Type of Retail Store","Grocery Stores/Supermarkets","Tesco Stores 4579","Premises related expenditure","10/12/2020","3.33","Director of Children's Services and Education"
"Type of Retail Store","Grocery Stores/Supermarkets","Tesco Stores 4579","Supplies and Services related expenditure","10/12/2020","10.00","Director of Children's Services and Education"
"Type of Retail Store","Grocery Stores/Supermarkets","Asda Groceries Online","Supplies and Services related expenditure","10/12/2020","4.17","Director of Children's Services and Education"
"Type of Retail Store","Grocery Stores/Supermarkets","Asda Groceries Online","Supplies and Services related expenditure","10/12/2020","32.70","Director of Children's Services and Education"
"Type of Retail Store","Grocery Stores/Supermarkets","Asda Groceries Online","Supplies and Services related expenditure","10/12/2020","8.46","Director of Children's Services and Education"
"Business To Business Eqpt/Furn","Stationery/Office Supplies","Www.Banneruk.Com","Supplies and Services related expenditure","10/12/2020","8.51","Director of Housing, Neighbourhood and Building Services"
"Miscellaneous","Member Organizations - Def","Www.Cips.Org","Supplies and Services related expenditure","10/12/2020","78.00","Director of Finance & Resources"
"Hotels And Motels","Premier Travel Inns","Premier Inn 44536680","Agency and Third Party Payments related expenditure","10/12/2020","503.73","Director of Housing, Neighbourhood and Building Services"
"Business To Business Facility/","Industrial Supplies - Def","Arco Limited (Ahpp)","Supplies and Services related expenditure","10/12/2020","37.28","Director of Housing, Neighbourhood and Building Services"
"Utility","Computer Network/Info Svcs","Paypal","Supplies and Services related expenditure","10/12/2020","22.45","Director of Children's Services and Education"
"Hotels And Motels","Premier Travel Inns","Premier Inn44530345","Supplies and Services related expenditure","10/12/2020","56.66","Director of Regeneration"
"Hotels And Motels","Premier Travel Inns","Premier Inn44530345","Supplies and Services related expenditure","10/12/2020","56.66","Director of Regeneration"
"Auto/Vehicle Expenses","Auto Service Shops/Non Dealer","Boarhunt Vehicle Services","Supplies and Services related expenditure","","155.00","Director of Housing, Neighbourhood and Building Services"
"Auto/Vehicle Expenses","Auto Service Shops/Non Dealer","Boarhunt Vehicle Services","Supplies and Services related expenditure","","182.35","Director of Finance & Resources"
"Other Supplies","Misc Speciality Retail","Amznmktplace","Agency and Third Party Payments related expenditure","","24.99","Director of Housing, Neighbourhood and Building Services"
"Other Supplies","Misc Speciality Retail","Amz*procomponentes","Supplies and Services related expenditure","","-54.23","Director of Housing, Neighbourhood and Building Services"
"Hotels And Motels","Travelodge","Travelodge Gb0000","Agency and Third Party Payments related expenditure","","1,397.59","Director of Housing, Neighbourhood and Building Services"
"Hotels And Motels","Travelodge","Travelodge Gb0000","Agency and Third Party Payments related expenditure","","147.00","Director of Housing, Neighbourhood and Building Services"
"Hotels And Motels","Travelodge","Travelodge Gb0000","Agency and Third Party Payments related expenditure","","147.00","Director of Housing, Neighbourhood and Building Services"
"Hotels And Motels","Travelodge","Travelodge Gb0000","Agency and Third Party Payments related expenditure","","1,070.07","Director of Housing, Neighbourhood and Building Services"
"Type of Retail Store","Grocery Stores/Supermarkets","Sun Hung Chang","Supplies and Services related expenditure","","2.75","Director of Children's Services and Education"
"Eating And Drinking Places","Fast Food Restaurants","Shakeaway Portsmouth","Supplies and Services related expenditure","","3.49","Director of Children's Services and Education"
"Other Supplies","Misc Speciality Retail","Amznmktplace","Supplies and Services related expenditure","","34.00","Director of Housing, Neighbourhood and Building Services"
"Type of Retail Store","Fabric Stores","Hampshirefl","Supplies and Services related expenditure","","70.89","Director of Housing, Neighbourhood and Building Services"
"Business To Business Eqpt/Furn","Stationery/Office Supplies","Www.Banneruk.Com","Supplies and Services related expenditure","","43.24","Director of Finance & Resources"
"Transportation Conveyor","Local Commuter Transport","Stena Line Ltd","Supplies and Services related expenditure","","-278.00","Director of Portsmouth International Port"
"Transportation Conveyor","Passenger Railways","Swrailwayselfserve","Transport related expenditure","","5.10","Director of Children's Services and Education"
"Transportation Conveyor","Passenger Railways","Swrailwayselfserve","Transport related expenditure","","5.10","Director of Children's Services and Education"
"Other Supplies","Misc Gen Merchandise - Def","Wilko.Com","Supplies and Services related expenditure","","61.67","Director of Children's Services and Education"
"Business To Business Eqpt/Furn","Computers/Peripherals/Software","Hotjar","Supplies and Services related expenditure","","27.13","Director of Corporate Services"
"Type of Retail Store","Grocery Stores/Supermarkets","Aldi Stores Ltd","Supplies and Services related expenditure","","99.37","Director of Adult Services"
"Other Supplies","Misc Speciality Retail","Amznmktplace","Supplies and Services related expenditure","","21.23","Director of Children's Services and Education"
"Type of Retail Store","Grocery Stores/Supermarkets","Tesco Stores 6002","Supplies and Services related expenditure","","4.40","Director of Adult Services"
